Workbook

Sheet Sheet1
A1: Make Model | B1: Type | C1: family | D1: Engine | E1: Range | F1: PAX | G1: Text $ | H1: Price ($M) | J1: Market value | K1: source
A2: BOEING 737-MAX 7 | B2: =TRIM(RIGHT(A2,LEN(A2)-SEARCH(" ",A2))) -> 737-MAX 7 | C2: 737 | F2: 172 | G2: $99.7M | H2: =VALUE(LEFT(G2,LEN(G2)-1)) -> 99.7 | I2: =INDEX(Sheet3!$A$1:$B$21,MATCH(RIGHT(A2,LEN(A2)-SEARCH(" ",A2)),Sheet3!$A$1:$A$21,0),2) ->  | J2: =H2/2 -> 49.85 | K2: http://www.axonaviation.com/commercial-aircraft/aircraft-data/aircraft-pricing | L2: =INDEX('Aircraft Pricing'!$A:$F,MATCH(A2&"^"&D2&"^"&E2&"^"&F2&"^"&G2,'Aircraft Pricing'!$F:$F,0),5) -> 
A3: Airbus A220-100 | B3: =RIGHT(A3,LEN(A3)-SEARCH(" ",A3)) -> A220-100 | C3: A220 | G3: $81.0M | H3: =VALUE(LEFT(G3,LEN(G3)-1)) -> 81 | I3: =INDEX(Sheet3!$A$1:$B$21,MATCH(RIGHT(A3,LEN(A3)-SEARCH(" ",A3)),Sheet3!$A$1:$A$21,0),2) ->  | J3: =H3/2 -> 40.5 | K3: https://simpleflying.com/how-much-do-airbus-aircraft-cost/ | L3: =INDEX('Aircraft Pricing'!$A:$F,MATCH(A3&"^"&D3&"^"&E3&"^"&F3&"^"&G3,'Aircraft Pricing'!$F:$F,0),5) -> 
A4: Airbus A220-300 | B4: A220-300 | C4: A220 | G4: $91.5M | H4: 91.5 | I4: =INDEX(Sheet3!$A$1:$B$21,MATCH(RIGHT(A4,LEN(A4)-SEARCH(" ",A4)),Sheet3!$A$1:$A$21,0),2) ->  | J4: =H4/2 -> 45.75 | K4: https://simpleflying.com/how-much-do-airbus-aircraft-cost/ | L4: =INDEX('Aircraft Pricing'!$A:$F,MATCH(A4&"^"&D4&"^"&E4&"^"&F4&"^"&G4,'Aircraft Pricing'!$F:$F,0),5) -> 
A5: Airbus A318 | B5: A318 | C5: A320 | D5: GE, Pratt & Whitney | E5: 3,100 NM | F5: 107 | G5: $75.1M | H5: 75.1 | I5: =INDEX(Sheet3!$A$1:$B$21,MATCH(RIGHT(A5,LEN(A5)-SEARCH(" ",A5)),Sheet3!$A$1:$A$21,0),2) ->  | J5: =H5/2 -> 37.55 | K5: http://www.axonaviation.com/commercial-aircraft/aircraft-data/aircraft-pricing | L5: =INDEX('Aircraft Pricing'!$A:$F,MATCH(A5&"^"&D5&"^"&E5&"^"&F5&"^"&G5,'Aircraft Pricing'!$F:$F,0),5) -> $75.1M
A6: Airbus A319 | B6: A319 | C6: A320 | D6: GE, International Aero Engines | E6: 3,700 nm | F6: 124 | G6: $89.6M | H6: 89.6 | I6: =INDEX(Sheet3!$A$1:$B$21,MATCH(RIGHT(A6,LEN(A6)-SEARCH(" ",A6)),Sheet3!$A$1:$A$21,0),2) ->  | J6: =H6/2 -> 44.8 | K6: http://www.axonaviation.com/commercial-aircraft/aircraft-data/aircraft-pricing | L6: =INDEX('Aircraft Pricing'!$A:$F,MATCH(A6&"^"&D6&"^"&E6&"^"&F6&"^"&G6,'Aircraft Pricing'!$F:$F,0),5) -> $89.6M
A7: Airbus A319NEO | B7: A319NEO | C7: A320 | G7: $101.5M | H7: 101.5 | I7: =INDEX(Sheet3!$A$1:$B$21,MATCH(RIGHT(A7,LEN(A7)-SEARCH(" ",A7)),Sheet3!$A$1:$A$21,0),2) ->  | J7: 50.75 | K7: https://simpleflying.com/how-much-do-airbus-aircraft-cost/ | L7: =INDEX('Aircraft Pricing'!$A:$F,MATCH(A7&"^"&D7&"^"&E7&"^"&F7&"^"&G7,'Aircraft Pricing'!$F:$F,0),5) -> 
A8: Airbus A320 | B8: A320 | C8: A320 | D8: GE, International Aero Engines | E8: 3,300 NM | F8: 150 | G8: $98M | H8: 98 | I8: =INDEX(Sheet3!$A$1:$B$21,MATCH(RIGHT(A8,LEN(A8)-SEARCH(" ",A8)),Sheet3!$A$1:$A$21,0),2) ->  | J8: 49 | K8: http://www.axonaviation.com/commercial-aircraft/aircraft-data/aircraft-pricing | L8: =INDEX('Aircraft Pricing'!$A:$F,MATCH(A8&"^"&D8&"^"&E8&"^"&F8&"^"&G8,'Aircraft Pricing'!$F:$F,0),5) -> $98M
A9: Airbus A321 | B9: A321 | C9: A320 | D9: GE, International Aero Engines | E9: 3,200 NM | F9: 185 | G9: $114.9M | H9: 114.9 | I9: =INDEX(Sheet3!$A$1:$B$21,MATCH(RIGHT(A9,LEN(A9)-SEARCH(" ",A9)),Sheet3!$A$1:$A$21,0),2) ->  | J9: =H9/2 -> 57.45 | K9: http://www.axonaviation.com/commercial-aircraft/aircraft-data/aircraft-pricing | L9: =INDEX('Aircraft Pricing'!$A:$F,MATCH(A9&"^"&D9&"^"&E9&"^"&F9&"^"&G9,'Aircraft Pricing'!$F:$F,0),5) -> $114.9M
A10: Airbus A321NEO | B10: A321NEO | C10: A320 | G10: $129.5M | H10: 129.5 | I10: =INDEX(Sheet3!$A$1:$B$21,MATCH(RIGHT(A10,LEN(A10)-SEARCH(" ",A10)),Sheet3!$A$1:$A$21,0),2) ->  | J10: 64.75 | K10: https://simpleflying.com/how-much-do-airbus-aircraft-cost/ | L10: =INDEX('Aircraft Pricing'!$A:$F,MATCH(A10&"^"&D10&"^"&E10&"^"&F10&"^"&G10,'Aircraft Pricing'!$F:$F,0),5) -> 
A11: Airbus A330-200 | B11: A330-200 | C11: A330/340 | D11: ROLLS-ROYCE, GE, Pratt & Whitney | E11: 7,250 NM | F11: 247 | G11: $231.5M | H11: 231.5 | I11: =INDEX(Sheet3!$A$1:$B$21,MATCH(RIGHT(A11,LEN(A11)-SEARCH(" ",A11)),Sheet3!$A$1:$A$21,0),2) ->  | J11: 115.75 | K11: http://www.axonaviation.com/commercial-aircraft/aircraft-data/aircraft-pricing | L11: =INDEX('Aircraft Pricing'!$A:$F,MATCH(A11&"^"&D11&"^"&E11&"^"&F11&"^"&G11,'Aircraft Pricing'!$F:$F,0),5) -> $231.5M
A12: Airbus A330-200F | B12: A330-200F | C12: A330/340 | D12: Pratt & Whitney, ROLLS-ROYCE | E12: 4,000 NM | F12: N/A | G12: $234.7M | H12: 234.7 | I12: =INDEX(Sheet3!$A$1:$B$21,MATCH(RIGHT(A12,LEN(A12)-SEARCH(" ",A12)),Sheet3!$A$1:$A$21,0),2) ->  | J12: 117.35 | K12: http://www.axonaviation.com/commercial-aircraft/aircraft-data/aircraft-pricing | L12: =INDEX('Aircraft Pricing'!$A:$F,MATCH(A12&"^"&D12&"^"&E12&"^"&F12&"^"&G12,'Aircraft Pricing'!$F:$F,0),5) -> $234.7M
A13: Airbus A330-300 | B13: A330-300 | C13: A330/340 | D13: ROLLS-ROYCE, GE, Pratt & Whitney | E13: 6,350 NM | F13: 277 | G13: $256.4M | H13: 256.4 | I13: =INDEX(Sheet3!$A$1:$B$21,MATCH(RIGHT(A13,LEN(A13)-SEARCH(" ",A13)),Sheet3!$A$1:$A$21,0),2) ->  | J13: =H13/2 -> 128.2 | K13: http://www.axonaviation.com/commercial-aircraft/aircraft-data/aircraft-pricing | L13: =INDEX('Aircraft Pricing'!$A:$F,MATCH(A13&"^"&D13&"^"&E13&"^"&F13&"^"&G13,'Aircraft Pricing'!$F:$F,0),5) -> $256.4M
A14: Airbus A330-800NEO | B14: A330-800NEO | C14: A330/340 | G14: $259.9M | H14: 259.9 | I14: =INDEX(Sheet3!$A$1:$B$21,MATCH(RIGHT(A14,LEN(A14)-SEARCH(" ",A14)),Sheet3!$A$1:$A$21,0),2) ->  | J14: 129.95 | K14: https://simpleflying.com/how-much-do-airbus-aircraft-cost/ | L14: =INDEX('Aircraft Pricing'!$A:$F,MATCH(A14&"^"&D14&"^"&E14&"^"&F14&"^"&G14,'Aircraft Pricing'!$F:$F,0),5) -> 
A15: Airbus A330-900NEO | B15: A330-900NEO | C15: A330/340 | G15: $296.4M | H15: 296.4 | I15: =INDEX(Sheet3!$A$1:$B$21,MATCH(RIGHT(A15,LEN(A15)-SEARCH(" ",A15)),Sheet3!$A$1:$A$21,0),2) ->  | J15: =H15/2 -> 148.2 | K15: https://simpleflying.com/how-much-do-airbus-aircraft-cost/ | L15: =INDEX('Aircraft Pricing'!$A:$F,MATCH(A15&"^"&D15&"^"&E15&"^"&F15&"^"&G15,'Aircraft Pricing'!$F:$F,0),5) -> 
A16: Airbus A340-300 | B16: A340-300 | C16: A330/340 | D16: CFM International | E16: 7,300 NM | F16: 277 | G16: $219M | H16: 219 | I16: =INDEX(Sheet3!$A$1:$B$21,MATCH(RIGHT(A16,LEN(A16)-SEARCH(" ",A16)),Sheet3!$A$1:$A$21,0),2) ->  | J16: 109.5 | K16: http://www.axonaviation.com/commercial-aircraft/aircraft-data/aircraft-pricing | L16: =INDEX('Aircraft Pricing'!$A:$F,MATCH(A16&"^"&D16&"^"&E16&"^"&F16&"^"&G16,'Aircraft Pricing'!$F:$F,0),5) -> $219M
A17: Airbus A350-900 | B17: A350-900 | C17: A350 | D17: ROLLS-ROYCE | E17: 8,100 NM | F17: 325 | G17: $308.1M | H17: 308.1 | I17: =INDEX(Sheet3!$A$1:$B$21,MATCH(RIGHT(A17,LEN(A17)-SEARCH(" ",A17)),Sheet3!$A$1:$A$21,0),2) ->  | J17: 154.05 | K17: http://www.axonaviation.com/commercial-aircraft/aircraft-data/aircraft-pricing | L17: =INDEX('Aircraft Pricing'!$A:$F,MATCH(A17&"^"&D17&"^"&E17&"^"&F17&"^"&G17,'Aircraft Pricing'!$F:$F,0),5) -> $308.1M
A18: Airbus A350-1000 | B18: A350-1000 | C18: A350 | D18: ROLLS-ROYCE | E18: 7,950 NM | F18: 366 | G18: $355.7M | H18: 355.7 | I18: =INDEX(Sheet3!$A$1:$B$21,MATCH(RIGHT(A18,LEN(A18)-SEARCH(" ",A18)),Sheet3!$A$1:$A$21,0),2) ->  | J18: 177.85 | K18: http://www.axonaviation.com/commercial-aircraft/aircraft-data/aircraft-pricing | L18: =INDEX('Aircraft Pricing'!$A:$F,MATCH(A18&"^"&D18&"^"&E18&"^"&F18&"^"&G18,'Aircraft Pricing'!$F:$F,0),5) -> $355.7M
A19: Airbus A380 | B19: A380 | C19: A380 | D19: ROLLS-ROYCE, Engine Alliance | E19: 8,200 NM | F19: 544 | G19: $350M | H19: 350 | I19: =INDEX(Sheet3!$A$1:$B$21,MATCH(RIGHT(A19,LEN(A19)-SEARCH(" ",A19)),Sheet3!$A$1:$A$21,0),2) ->  | J19: 175 | K19: http://www.axonaviation.com/commercial-aircraft/aircraft-data/aircraft-pricing | L19: =INDEX('Aircraft Pricing'!$A:$F,MATCH(A19&"^"&D19&"^"&E19&"^"&F19&"^"&G19,'Aircraft Pricing'!$F:$F,0),5) -> $350M
A20: Boeing 737-700 | B20: 737-700 | C20: 737 | D20: Pratt & Whitney, GE | E20: 3,440 NM | F20: 126 | G20: $89.1M | H20: 89.1 | I20: =INDEX(Sheet3!$A$1:$B$21,MATCH(RIGHT(A20,LEN(A20)-SEARCH(" ",A20)),Sheet3!$A$1:$A$21,0),2) -> 89.1 | J20: 44.55 | K20: http://www.axonaviation.com/commercial-aircraft/aircraft-data/aircraft-pricing | L20: =INDEX('Aircraft Pricing'!$A:$F,MATCH(A20&"^"&D20&"^"&E20&"^"&F20&"^"&G20,'Aircraft Pricing'!$F:$F,0),5) -> $89.1M
A21: Boeing 737-800 | B21: 737-800 | C21: 737 | D21: Pratt & Whitney, GE, ROLLS-ROYCE | E21: 3,115 NM | F21: 162 | G21: $106.1M | H21: 106.1 | I21: =INDEX(Sheet3!$A$1:$B$21,MATCH(RIGHT(A21,LEN(A21)-SEARCH(" ",A21)),Sheet3!$A$1:$A$21,0),2) -> 106.1 | J21: 53.05 | K21: http://www.axonaviation.com/commercial-aircraft/aircraft-data/aircraft-pricing | L21: =INDEX('Aircraft Pricing'!$A:$F,MATCH(A21&"^"&D21&"^"&E21&"^"&F21&"^"&G21,'Aircraft Pricing'!$F:$F,0),5) -> $106.1M
A22: Boeing 737-900ER | B22: 737-900ER | C22: 737 | D22: Pratt & Whitney, GE | E22: 3,265 NM | F22: 178 | G22: $112.6M | H22: 112.6 | I22: =INDEX(Sheet3!$A$1:$B$21,MATCH(RIGHT(A22,LEN(A22)-SEARCH(" ",A22)),Sheet3!$A$1:$A$21,0),2) -> 112.6 | J22: 56.3 | K22: http://www.axonaviation.com/commercial-aircraft/aircraft-data/aircraft-pricing | L22: =INDEX('Aircraft Pricing'!$A:$F,MATCH(A22&"^"&D22&"^"&E22&"^"&F22&"^"&G22,'Aircraft Pricing'!$F:$F,0),5) -> $112.6M | P22: https://www.iba.aero/insight/aircraft-values-lease-rates-update-february-2024/
A23: Boeing 747-400 | B23: 747-400 | C23: 747 | D23: Pratt & Whitney, GE, ROLLS-ROYCE | E23: 7,260 NM | F23: 410 | I23: =INDEX(Sheet3!$A$1:$B$21,MATCH(RIGHT(A23,LEN(A23)-SEARCH(" ",A23)),Sheet3!$A$1:$A$21,0),2) ->  | J23: 0 | K23: http://www.axonaviation.com/commercial-aircraft/aircraft-data/aircraft-pricing | L23: =INDEX('Aircraft Pricing'!$A:$F,MATCH(A23&"^"&D23&"^"&E23&"^"&F23&"^"&G23,'Aircraft Pricing'!$F:$F,0),5) -> 0
A24: Boeing 747-400F | B24: 747-400F | C24: 747 | D24: Pratt & Whitney, GE, ROLLS-ROYCE | E24: 4,445 NM | F24: N/A | I24: =INDEX(Sheet3!$A$1:$B$21,MATCH(RIGHT(A24,LEN(A24)-SEARCH(" ",A24)),Sheet3!$A$1:$A$21,0),2) ->  | J24: 0 | K24: http://www.axonaviation.com/commercial-aircraft/aircraft-data/aircraft-pricing | L24: =INDEX('Aircraft Pricing'!$A:$F,MATCH(A24&"^"&D24&"^"&E24&"^"&F24&"^"&G24,'Aircraft Pricing'!$F:$F,0),5) -> 0
A25: Boeing 747-8i | B25: 747-8i | C25: 747 | D25: GE | E25: 7,730 NM | F25: 410 | G25: $418.4M | H25: 418.4 | I25: =INDEX(Sheet3!$A$1:$B$21,MATCH(RIGHT(A25,LEN(A25)-SEARCH(" ",A25)),Sheet3!$A$1:$A$21,0),2) ->  | J25: 209.2 | K25: http://www.axonaviation.com/commercial-aircraft/aircraft-data/aircraft-pricing | L25: =INDEX('Aircraft Pricing'!$A:$F,MATCH(A25&"^"&D25&"^"&E25&"^"&F25&"^"&G25,'Aircraft Pricing'!$F:$F,0),5) -> $418.4M
A26: Boeing 757-200 | B26: 757-200 | C26: 757 | D26: ROLLS-ROYCE, Pratt & Whitney | E26: 4,100 NM | F26: 200 | G26: TBC | I26: =INDEX(Sheet3!$A$1:$B$21,MATCH(RIGHT(A26,LEN(A26)-SEARCH(" ",A26)),Sheet3!$A$1:$A$21,0),2) ->  | J26: 0 | K26: http://www.axonaviation.com/commercial-aircraft/aircraft-data/aircraft-pricing | L26: =INDEX('Aircraft Pricing'!$A:$F,MATCH(A26&"^"&D26&"^"&E26&"^"&F26&"^"&G26,'Aircraft Pricing'!$F:$F,0),5) -> TBC
A27: Boeing 757-300 | B27: 757-300 | C27: 757 | D27: ROLLS-ROYCE, Pratt & Whitney | E27: 3,595 NM | F27: 243 | G27: TBC | I27: =INDEX(Sheet3!$A$1:$B$21,MATCH(RIGHT(A27,LEN(A27)-SEARCH(" ",A27)),Sheet3!$A$1:$A$21,0),2) ->  | J27: 0 | K27: http://www.axonaviation.com/commercial-aircraft/aircraft-data/aircraft-pricing | L27: =INDEX('Aircraft Pricing'!$A:$F,MATCH(A27&"^"&D27&"^"&E27&"^"&F27&"^"&G27,'Aircraft Pricing'!$F:$F,0),5) -> TBC
A28: Boeing 767-300ER | B28: 767-300ER | C28: 767 | D28: Pratt & Whitney, GE, ROLLS-ROYCE | E28: 6,310 NM | F28: 269 | G28: $217.9M | H28: 217.9 | I28: =INDEX(Sheet3!$A$1:$B$21,MATCH(RIGHT(A28,LEN(A28)-SEARCH(" ",A28)),Sheet3!$A$1:$A$21,0),2) -> 217.9 | J28: 108.95 | K28: http://www.axonaviation.com/commercial-aircraft/aircraft-data/aircraft-pricing | L28: =INDEX('Aircraft Pricing'!$A:$F,MATCH(A28&"^"&D28&"^"&E28&"^"&F28&"^"&G28,'Aircraft Pricing'!$F:$F,0),5) -> $217.9M
A29: Boeing 767-400ER | B29: 767-400ER | C29: 767 | D29: Pratt & Whitney, GE | E29: 5,625 NM | F29: 304 | G29: TBC | I29: =INDEX(Sheet3!$A$1:$B$21,MATCH(RIGHT(A29,LEN(A29)-SEARCH(" ",A29)),Sheet3!$A$1:$A$21,0),2) ->  | J29: 0 | K29: http://www.axonaviation.com/commercial-aircraft/aircraft-data/aircraft-pricing | L29: =INDEX('Aircraft Pricing'!$A:$F,MATCH(A29&"^"&D29&"^"&E29&"^"&F29&"^"&G29,'Aircraft Pricing'!$F:$F,0),5) -> TBC
A30: Boeing 777-200ER | B30: 777-200ER | C30: 777 | D30: Pratt & Whitney, GE, ROLLS-ROYCE | E30: 7,065 NM | F30: 313 | G30: $306.6M | H30: 306.6 | I30: =INDEX(Sheet3!$A$1:$B$21,MATCH(RIGHT(A30,LEN(A30)-SEARCH(" ",A30)),Sheet3!$A$1:$A$21,0),2) -> 306.6 | J30: 153.3 | K30: http://www.axonaviation.com/commercial-aircraft/aircraft-data/aircraft-pricing | L30: =INDEX('Aircraft Pricing'!$A:$F,MATCH(A30&"^"&D30&"^"&E30&"^"&F30&"^"&G30,'Aircraft Pricing'!$F:$F,0),5) -> $306.6M
A31: Boeing 777-200LR | B31: 777-200LR | C31: 777 | D31: GE | E31: 8,555 NM | F31: 317 | G31: $346.9M | H31: 346.9 | I31: =INDEX(Sheet3!$A$1:$B$21,MATCH(RIGHT(A31,LEN(A31)-SEARCH(" ",A31)),Sheet3!$A$1:$A$21,0),2) -> 346.9 | J31: 173.45 | K31: http://www.axonaviation.com/commercial-aircraft/aircraft-data/aircraft-pricing | L31: =INDEX('Aircraft Pricing'!$A:$F,MATCH(A31&"^"&D31&"^"&E31&"^"&F31&"^"&G31,'Aircraft Pricing'!$F:$F,0),5) -> $346.9M
A32: Boeing 777-300ER | B32: 777-300ER | C32: 777 | D32: GE | E32: 7,370 NM | F32: 396 | G32: $375.5M | H32: 375.5 | I32: =INDEX(Sheet3!$A$1:$B$21,MATCH(RIGHT(A32,LEN(A32)-SEARCH(" ",A32)),Sheet3!$A$1:$A$21,0),2) -> 375.5 | J32: 187.75 | K32: http://www.axonaviation.com/commercial-aircraft/aircraft-data/aircraft-pricing | L32: =INDEX('Aircraft Pricing'!$A:$F,MATCH(A32&"^"&D32&"^"&E32&"^"&F32&"^"&G32,'Aircraft Pricing'!$F:$F,0),5) -> $375.5M
A33: Boeing 777F | B33: 777F | C33: 777 | D33: GE | E33: 4,970 NM | F33: N/A | G33: $352.3M | H33: 352.3 | I33: =INDEX(Sheet3!$A$1:$B$21,MATCH(RIGHT(A33,LEN(A33)-SEARCH(" ",A33)),Sheet3!$A$1:$A$21,0),2) ->  | J33: 176.15 | K33: http://www.axonaviation.com/commercial-aircraft/aircraft-data/aircraft-pricing | L33: =INDEX('Aircraft Pricing'!$A:$F,MATCH(A33&"^"&D33&"^"&E33&"^"&F33&"^"&G33,'Aircraft Pricing'!$F:$F,0),5) -> $352.3M
A34: Boeing 787-8 | B34: 787-8 | C34: 787 | D34: GE, ROLLS-ROYCE | E34: 7,355 NM | F34: 242 | G34: $248.3M | H34: 248.3 | I34: =INDEX(Sheet3!$A$1:$B$21,MATCH(RIGHT(A34,LEN(A34)-SEARCH(" ",A34)),Sheet3!$A$1:$A$21,0),2) -> 248.3 | J34: 124.15 | K34: http://www.axonaviation.com/commercial-aircraft/aircraft-data/aircraft-pricing | L34: =INDEX('Aircraft Pricing'!$A:$F,MATCH(A34&"^"&D34&"^"&E34&"^"&F34&"^"&G34,'Aircraft Pricing'!$F:$F,0),5) -> $248.3M
A35: Boeing 787-9 | B35: 787-9 | C35: 787 | D35: GE, ROLLS-ROYCE | E35: 7,635 NM | F35: 290 | G35: $292.5M | H35: 292.5 | I35: =INDEX(Sheet3!$A$1:$B$21,MATCH(RIGHT(A35,LEN(A35)-SEARCH(" ",A35)),Sheet3!$A$1:$A$21,0),2) -> 292.5 | J35: 146.25 | K35: http://www.axonaviation.com/commercial-aircraft/aircraft-data/aircraft-pricing | L35: =INDEX('Aircraft Pricing'!$A:$F,MATCH(A35&"^"&D35&"^"&E35&"^"&F35&"^"&G35,'Aircraft Pricing'!$F:$F,0),5) -> $292.5M
A36: Boeing 787-10 | B36: 787-10 | C36: 787 | D36: GE , ROLLS-ROYCE | E36: 6,430 NM | F36: 330 | G36: 338.4 | H36: =VALUE(G36) -> 338.4 | I36: =INDEX(Sheet3!$A$1:$B$21,MATCH(RIGHT(A36,LEN(A36)-SEARCH(" ",A36)),Sheet3!$A$1:$A$21,0),2) -> 338.4 | J36: 169.2 | K36: http://www.axonaviation.com/commercial-aircraft/aircraft-data/aircraft-pricing | L36: =INDEX('Aircraft Pricing'!$A:$F,MATCH(A36&"^"&D36&"^"&E36&"^"&F36&"^"&G36,'Aircraft Pricing'!$F:$F,0),5) -> 338.4
A37: Bombardier CRJ100ER/LR | B37: CRJ100ER/LR | C37: CRJ | D37: GE | E37: 1,620 NM / 2,003 NM | F37: 50 | G37: TBC | I37: =INDEX(Sheet3!$A$1:$B$21,MATCH(RIGHT(A37,LEN(A37)-SEARCH(" ",A37)),Sheet3!$A$1:$A$21,0),2) ->  | J37: 0 | K37: http://www.axonaviation.com/commercial-aircraft/aircraft-data/aircraft-pricing | L37: =INDEX('Aircraft Pricing'!$A:$F,MATCH(A37&"^"&D37&"^"&E37&"^"&F37&"^"&G37,'Aircraft Pricing'!$F:$F,0),5) -> TBC
A38: Bombardier CRJ200ER/LR | B38: CRJ200ER/LR | C38: CRJ | D38: GE | E38: 1,644 NM / 2,004 NM | F38: 50 | G38: TBC | I38: =INDEX(Sheet3!$A$1:$B$21,MATCH(RIGHT(A38,LEN(A38)-SEARCH(" ",A38)),Sheet3!$A$1:$A$21,0),2) ->  | J38: 0 | K38: http://www.axonaviation.com/commercial-aircraft/aircraft-data/aircraft-pricing | L38: =INDEX('Aircraft Pricing'!$A:$F,MATCH(A38&"^"&D38&"^"&E38&"^"&F38&"^"&G38,'Aircraft Pricing'!$F:$F,0),5) -> TBC
A39: Bombardier CRJ700ER | B39: CRJ700ER | C39: CRJ | D39: GE | E39: 1,378 NM | F39: 66 | G39: TBC | I39: =INDEX(Sheet3!$A$1:$B$21,MATCH(RIGHT(A39,LEN(A39)-SEARCH(" ",A39)),Sheet3!$A$1:$A$21,0),2) ->  | J39: 0 | K39: http://www.axonaviation.com/commercial-aircraft/aircraft-data/aircraft-pricing | L39: =INDEX('Aircraft Pricing'!$A:$F,MATCH(A39&"^"&D39&"^"&E39&"^"&F39&"^"&G39,'Aircraft Pricing'!$F:$F,0),5) -> TBC
A40: Bombardier CRJ900ER/LR | B40: CRJ900ER/LR | C40: CRJ | D40: GE | E40: 1,317 NM / 1,553 NM | F40: 79 | G40: TBC | I40: =INDEX(Sheet3!$A$1:$B$21,MATCH(RIGHT(A40,LEN(A40)-SEARCH(" ",A40)),Sheet3!$A$1:$A$21,0),2) ->  | J40: 0 | K40: http://www.axonaviation.com/commercial-aircraft/aircraft-data/aircraft-pricing | L40: =INDEX('Aircraft Pricing'!$A:$F,MATCH(A40&"^"&D40&"^"&E40&"^"&F40&"^"&G40,'Aircraft Pricing'!$F:$F,0),5) -> TBC
A41: Bombardier CRJ1000ER | B41: CRJ1000ER | C41: CRJ | D41: GE | E41: 1,622 NM | F41: 50 | G41: TBC | I41: =INDEX(Sheet3!$A$1:$B$21,MATCH(RIGHT(A41,LEN(A41)-SEARCH(" ",A41)),Sheet3!$A$1:$A$21,0),2) ->  | J41: 0 | K41: http://www.axonaviation.com/commercial-aircraft/aircraft-data/aircraft-pricing | L41: =INDEX('Aircraft Pricing'!$A:$F,MATCH(A41&"^"&D41&"^"&E41&"^"&F41&"^"&G41,'Aircraft Pricing'!$F:$F,0),5) -> TBC
A42: Embraer 170LR | B42: 170LR | C42: ERJ170/175/190/195 | D42: GE | E42: 2,100 NM | F42: 70 | G42: $26.5M | H42: 26.5 | I42: =INDEX(Sheet3!$A$1:$B$21,MATCH(RIGHT(A42,LEN(A42)-SEARCH(" ",A42)),Sheet3!$A$1:$A$21,0),2) ->  | J42: 13.25 | K42: http://www.axonaviation.com/commercial-aircraft/aircraft-data/aircraft-pricing | L42: =INDEX('Aircraft Pricing'!$A:$F,MATCH(A42&"^"&D42&"^"&E42&"^"&F42&"^"&G42,'Aircraft Pricing'!$F:$F,0),5) -> $26.5M
A43: Embraer 175 | B43: 175 | C43: ERJ170/175/190/195 | D43: GE | E43: 2,150 NM | F43: 78 | G43: $28M | H43: 28 | I43: =INDEX(Sheet3!$A$1:$B$21,MATCH(RIGHT(A43,LEN(A43)-SEARCH(" ",A43)),Sheet3!$A$1:$A$21,0),2) ->  | J43: 14 | K43: http://www.axonaviation.com/commercial-aircraft/aircraft-data/aircraft-pricing | L43: =INDEX('Aircraft Pricing'!$A:$F,MATCH(A43&"^"&D43&"^"&E43&"^"&F43&"^"&G43,'Aircraft Pricing'!$F:$F,0),5) -> $28M
A44: Embraer 190 | B44: 190 | C44: ERJ170/175/190/195 | D44: GE | E44: 2,400 NM | F44: 94 | G44: $32M | H44: 32 | I44: =INDEX(Sheet3!$A$1:$B$21,MATCH(RIGHT(A44,LEN(A44)-SEARCH(" ",A44)),Sheet3!$A$1:$A$21,0),2) ->  | J44: 16 | K44: http://www.axonaviation.com/commercial-aircraft/aircraft-data/aircraft-pricing | L44: =INDEX('Aircraft Pricing'!$A:$F,MATCH(A44&"^"&D44&"^"&E44&"^"&F44&"^"&G44,'Aircraft Pricing'!$F:$F,0),5) -> $32M
A45: Embraer 195 | B45: 195 | C45: ERJ170/175/190/195 | D45: GE | E45: 2,000 NM | F45: 106 | G45: $40M | H45: 40 | I45: =INDEX(Sheet3!$A$1:$B$21,MATCH(RIGHT(A45,LEN(A45)-SEARCH(" ",A45)),Sheet3!$A$1:$A$21,0),2) ->  | J45: 20 | K45: http://www.axonaviation.com/commercial-aircraft/aircraft-data/aircraft-pricing | L45: =INDEX('Aircraft Pricing'!$A:$F,MATCH(A45&"^"&D45&"^"&E45&"^"&F45&"^"&G45,'Aircraft Pricing'!$F:$F,0),5) -> $40M

Sheet Sheet3
A1: 737-700 | B1: 89.1
A2: 737 MAX 7 | B2: 99.7
A3: 737-800 | B3: 106.1
A4: 737-900ER | B4: 112.6
A5: 737 MAX 8 | B5: 121.6
A6: 737 MAX 200 | B6: 124.8
A7: 737 MAX 9 | B7: 128.9
A8: 737 MAX 10 | B8: 134.9
A9: 767-300ER | B9: 217.9
A10: 767-300 Freighter | B10: 220.3
A11: 787-8 | B11: 248.3
A12: 787-9 | B12: 292.5
A13: 777-200ER | B13: 306.6
A14: 787-10 | B14: 338.4
A15: 777-200LR | B15: 346.9
A16: 777 Freighter | B16: 352.3
A17: 777-300ER | B17: 375.5
A18: 777-8 | B18: 410.2
A19: 747-8 | B19: 418.4
A20: 747-8 Freighter | B20: 419.2
A21: 777-9 | B21: 442.2

Sheet Sheet2
A1: A330/340
A2: A220
A3: A320
A4: A350
A5: A300
A6: A380
A7: ATR 42/72
A8: Do328Jet
A9: Beech 1900
A10: 737
A11: 777
A12: 727
A13: 787
A14: 767
A15: 747
A16: 757
A17: 717
A18: 707/720
A19: DHC-8
A20: CRJ
A21: A220
A22: Jetstream 41
A23: BAe146
A24: Jetstream 31
A25: HS748
A26: ATP
A27: CRJ
A28: ARJ21
A29: C919
A30: DHC-8
A31: DHC-6
A32: DHC-8
A33: DHC-7
A34: Do228
A35: Do328
A36: Do328Jet
A37: DC9/MD80
A38: EMB120
A39: EMB135/140/145
A40: ERJ170/175/190/195
A41: EMB110
A42: Metro
A43: Do328Jet
A44: F27/50
A45: F28/70/100
A46: HS748
A47: Do228
A48: N219
A49: L1011
A50: DC9/MD80
A51: DC8
A52: DC10/MD11
A53: Beech 1900
A54: Do328Jet
A55: Do228
A56: SAAB 340
A57: SAAB 2000
A58: Shorts
A59: Metro
A60: Cessna 408
A61: DHC-6
A62: MA700
A63: ERJ170/175/190/195

Sheet Sheet4
C1: MFGR | E1: aircraft_level_3 | F1: aircraft_level_4 | L1: Price ($M) | N1: Source
B2: 165 | C2: Aermacchi | D2: 1 | E2: M-345 | F2: Aermacchi M-345 | G2: =TRIM(SUBSTITUTE(F2,C2,"")) -> M-345 | H2: =TRIM(SUBSTITUTE(G2,"Family","")) -> M-345 | I2: =MATCH("*"&E2&"*",Sheet1!C:C,0) ->  | J2: =MATCH("*"&G2&"*",Sheet1!C:C,0) ->  | K2: =MATCH("*"&H2&"*",Sheet1!B:B,0) ->  | L2: =338/13 -> 26 | N2: https://www.defensenews.com/digital-show-dailies/paris-air-show/2019/06/13/italy-buys-13-jet-trainers-inks-naval-industry-deal/
B3: 166 | C3: Aermacchi | D3: 1 | E3: M-346 | F3: Aermacchi M-346 | G3: =TRIM(SUBSTITUTE(F3,C3,"")) -> M-346 | H3: =TRIM(SUBSTITUTE(G3,"Family","")) -> M-346 | I3: =MATCH("*"&E3&"*",Sheet1!C:C,0) ->  | J3: =MATCH("*"&G3&"*",Sheet1!C:C,0) ->  | K3: =MATCH("*"&H3&"*",Sheet1!B:B,0) ->  | L3: 25 | N3: https://www.defensenews.com/breaking-news/2017/01/26/trainer-price-wars-raytheon-wanted-millions-less-per-plane-than-leonardo/
B4: 578 | C4: Aero Vodochody | D4: 1 | E4: Aero L-39NG | F4: Aero Vodochody L-39NG | G4: L-39NG | H4: L-39NG | I4: =MATCH("*"&E4&"*",Sheet1!C:C,0) ->  | J4: =MATCH("*"&G4&"*",Sheet1!C:C,0) ->  | K4: =MATCH("*"&H4&"*",Sheet1!B:B,0) ->  | L4: 18.5 | N4: https://trends.aeroexpo.online/project-79261.html
B5: 675 | C5: AIDC | D5: 1 | E5: AIDC T-5 | F5: AIDC T-5 | G5: T-5 | H5: T-5 | I5: =MATCH("*"&E5&"*",Sheet1!C:C,0) ->  | J5: =MATCH("*"&G5&"*",Sheet1!C:C,0) ->  | K5: =MATCH("*"&H5&"*",Sheet1!B:B,0) ->  | L5: =(2200000000/66)/1000000 -> 33.33333333 | N5: https://www.janes.com/osint-insights/defence-news/defence/aidc-completes-27-t-5a-deliveries-to-rocaf
B6: 544 | C6: Air | D6: 1 | E6: Air Tractor | F6: Air Tractor | G6: Tractor | H6: Tractor | I6: =MATCH("*"&E6&"*",Sheet1!C:C,0) ->  | J6: =MATCH("*"&G6&"*",Sheet1!C:C,0) ->  | K6: =MATCH("*"&H6&"*",Sheet1!B:B,0) ->  | L6: x
B7: 674 | C7: Airbus | D7: 1 | E7: ACJ | F7: Airbus ACJ TwoTwenty | G7: ACJ TwoTwenty | H7: ACJ TwoTwenty | I7: =MATCH("*"&E7&"*",Sheet1!C:C,0) ->  | J7: =MATCH("*"&G7&"*",Sheet1!C:C,0) ->  | K7: =MATCH("*"&H7&"*",Sheet1!B:B,0) ->  | L7: 100 | N7: https://bjtonline.com/business-jet-news/airbus-acj-twotwenty
B8: 296 | C8: Airbus | D8: 1 | E8: ACJ | F8: Airbus ACJ320 Family | G8: ACJ320 Family | H8: ACJ320 | I8: =MATCH("*"&E8&"*",Sheet1!C:C,0) ->  | J8: =MATCH("*"&G8&"*",Sheet1!C:C,0) ->  | K8: =MATCH("*"&H8&"*",Sheet1!B:B,0) ->  | L8: 85 | N8: https://www.bjtonline.com/aircraft/airbus-acj320
B9: 528 | C9: Airbus | D9: 1 | E9: ACJ | F9: Airbus ACJ320neo Family | G9: ACJ320neo Family | H9: ACJ320neo | I9: =MATCH("*"&E9&"*",Sheet1!C:C,0) ->  | J9: =MATCH("*"&G9&"*",Sheet1!C:C,0) ->  | K9: =MATCH("*"&H9&"*",Sheet1!B:B,0) ->  | L9: 110 | N9: https://finance.yahoo.com/news/5-priciest-private-jets-2023-185110930.html
B10: 678 | C10: Airbus | D10: 1 | E10: Wide body VIP | F10: Airbus ACJ330-200 | G10: ACJ330-200 | H10: ACJ330-200 | I10: =MATCH("*"&E10&"*",Sheet1!C:C,0) ->  | J10: =MATCH("*"&G10&"*",Sheet1!C:C,0) ->  | K10: =MATCH("*"&H10&"*",Sheet1!B:B,0) ->  | L10: 390 | N10: https://www.businessairnews.com/hb_aircraftpage.html?recnum=ACJ330
B11: 565 | C11: Airbus | D11: 1 | E11: A330 | F11: Airbus A330-743L Beluga XL | G11: A330-743L Beluga XL | H11: A330-743L Beluga XL | I11: =MATCH("*"&E11&"*",Sheet1!C:C,0) -> 11 | J11: =MATCH("*"&G11&"*",Sheet1!C:C,0) ->  | K11: =MATCH("*"&H11&"*",Sheet1!B:B,0) ->  | L11: x
B12: 644 | C12: Airbus | D12: 1 | E12: A350 | F12: Airbus A350F | G12: A350F | H12: A350F | I12: =MATCH("*"&E12&"*",Sheet1!C:C,0) -> 17 | J12: =MATCH("*"&G12&"*",Sheet1!C:C,0) ->  | K12: =MATCH("*"&H12&"*",Sheet1!B:B,0) ->  | L12: 172 | N12: https://aircargoeye.com/airline/aircraft/airbus/a350f/
B13: 632 | C13: Airbus | D13: 1 | E13: A300 | F13: A300-600F/RF | G13: A300-600F/RF | H13: A300-600F/RF | I13: =MATCH("*"&E13&"*",Sheet1!C:C,0) ->  | J13: =MATCH("*"&G13&"*",Sheet1!C:C,0) ->  | K13: =MATCH("*"&H13&"*",Sheet1!B:B,0) ->  | L13: OOP
B14: 566 | C14: Airbus | D14: 1 | E14: A300 | F14: Airbus A300-600ST Beluga | G14: A300-600ST Beluga | H14: A300-600ST Beluga | I14: =MATCH("*"&E14&"*",Sheet1!C:C,0) ->  | J14: =MATCH("*"&G14&"*",Sheet1!C:C,0) ->  | K14: =MATCH("*"&H14&"*",Sheet1!B:B,0) ->  | L14: x
B15: 560 | C15: Airbus | D15: 1 | E15: A330 | F15: Airbus A330-200F | G15: A330-200F | H15: A330-200F | I15: =MATCH("*"&E15&"*",Sheet1!C:C,0) -> 11 | J15: =MATCH("*"&G15&"*",Sheet1!C:C,0) ->  | K15: =MATCH("*"&H15&"*",Sheet1!B:B,0) -> 12 | L15: =INDEX(Sheet1!$A:$K,MATCH($H15,Sheet1!$B:$B,0),MATCH(L$1,Sheet1!$A$1:$K$1,0)) -> 234.7 | N15: =INDEX(Sheet1!$A:$K,MATCH($H15,Sheet1!$B:$B,0),MATCH(N$1,Sheet1!$A$1:$K$1,0)) -> http://www.axonaviation.com/commercial-aircraft/aircraft-data/aircraft-pricing
B16: 562 | C16: Airbus | D16: 1 | E16: A330 | F16: Airbus A330-300P2F | G16: A330-300P2F | H16: A330-300P2F | I16: =MATCH("*"&E16&"*",Sheet1!C:C,0) -> 11 | J16: =MATCH("*"&G16&"*",Sheet1!C:C,0) ->  | K16: =MATCH("*"&H16&"*",Sheet1!B:B,0) ->  | L16: 27 | M16: used | N16: https://www.iba.aero/news/sustained-demand-for-passenger-to-freighter-aircraft-conversions-says-iba/
B17: 669 | C17: Airbus | D17: 1 | E17: A340 | F17: Airbus A340-600NGF | G17: A340-600NGF | H17: A340-600NGF | I17: =MATCH("*"&E17&"*",Sheet1!C:C,0) ->  | J17: =MATCH("*"&G17&"*",Sheet1!C:C,0) ->  | K17: =MATCH("*"&H17&"*",Sheet1!B:B,0) ->  | L17: x
B18: 665 | C18: Airbus | D18: 1 | E18: A320ceo | F18: A320-200P2F | G18: A320-200P2F | H18: A320-200P2F | I18: =MATCH("*"&E18&"*",Sheet1!C:C,0) ->  | J18: =MATCH("*"&G18&"*",Sheet1!C:C,0) ->  | K18: =MATCH("*"&H18&"*",Sheet1!B:B,0) ->  | L18: 23.3 | M18: used | N18: https://www.airliners.net/forum/viewtopic.php?t=1439571&start=300
B19: 666 | C19: Airbus | D19: 1 | E19: A320ceo | F19: A321P2F | G19: A321P2F | H19: A321P2F | I19: =MATCH("*"&E19&"*",Sheet1!C:C,0) ->  | J19: =MATCH("*"&G19&"*",Sheet1!C:C,0) ->  | K19: =MATCH("*"&H19&"*",Sheet1!B:B,0) ->  | L19: 101 | N19: https://www.avdelphi.com/aircraft_type.html?id=12714&recache=1721917906
B20: 104 | C20: Airbus | D20: 1 | E20: Tiger | F20: Airbus Tiger | G20: Tiger | H20: Tiger | I20: =MATCH("*"&E20&"*",Sheet1!C:C,0) ->  | J20: =MATCH("*"&G20&"*",Sheet1!C:C,0) ->  | K20: =MATCH("*"&H20&"*",Sheet1!B:B,0) ->  | L20: 73 | N20: https://simpleflying.com/most-expensive-military-helicopters-guide/
B21: 117 | C21: Airbus | D21: 1 | E21: Airbus UH-72 Lakota | F21: Airbus UH-72 Lakota | G21: UH-72 Lakota | H21: UH-72 Lakota | I21: =MATCH("*"&E21&"*",Sheet1!C:C,0) ->  | J21: =MATCH("*"&G21&"*",Sheet1!C:C,0) ->  | K21: =MATCH("*"&H21&"*",Sheet1!B:B,0) ->  | L21: =122.6/15 -> 8.173333333 | N21: https://verticalmag.com/news/us-army-airbus-lakota-training-helicopters/
B22: 112 | C22: Airbus | D22: 1 | E22: H120 Colibri | F22: Airbus H120 Colibri | G22: H120 Colibri | H22: H120 Colibri | I22: =MATCH("*"&E22&"*",Sheet1!C:C,0) ->  | J22: =MATCH("*"&G22&"*",Sheet1!C:C,0) ->  | K22: =MATCH("*"&H22&"*",Sheet1!B:B,0) ->  | L22: 2 | N22: https://bjtonline.com/aircraft/airbus-helicopters-h120
B23: 107 | C23: Airbus | D23: 1 | E23: H125 | F23: Airbus H125 | G23: H125 | H23: H125 | I23: =MATCH("*"&E23&"*",Sheet1!C:C,0) ->  | J23: =MATCH("*"&G23&"*",Sheet1!C:C,0) ->  | K23: =MATCH("*"&H23&"*",Sheet1!B:B,0) ->  | L23: 2.9 | N23: https://www.bjtonline.com/aircraft/airbus-helicopters-h125
B24: 108 | C24: Airbus | D24: 1 | E24: H130 | F24: Airbus H130 | G24: H130 | H24: H130 | I24: =MATCH("*"&E24&"*",Sheet1!C:C,0) ->  | J24: =MATCH("*"&G24&"*",Sheet1!C:C,0) ->  | K24: =MATCH("*"&H24&"*",Sheet1!B:B,0) ->  | L24: 3.3 | N24: https://www.bjtonline.com/aircraft/airbus-helicopters-h130
B25: 483 | C25: Airbus | D25: 1 | E25: H135 | F25: Airbus H135 | G25: H135 | H25: H135 | I25: =MATCH("*"&E25&"*",Sheet1!C:C,0) ->  | J25: =MATCH("*"&G25&"*",Sheet1!C:C,0) ->  | K25: =MATCH("*"&H25&"*",Sheet1!B:B,0) ->  | L25: 5.7 | N25: https://www.bjtonline.com/aircraft/airbus-helicopters-h135-p3
B26: 113 | C26: Airbus | D26: 1 | E26: H145 | F26: Airbus H145/Kawasaki BK117 | G26: H145/Kawasaki BK117 | H26: H145/Kawasaki BK117 | I26: =MATCH("*"&E26&"*",Sheet1!C:C,0) ->  | J26: =MATCH("*"&G26&"*",Sheet1!C:C,0) ->  | K26: =MATCH("*"&H26&"*",Sheet1!B:B,0) ->  | L26: 9.7 | N26: https://www.bjtonline.com/aircraft/airbus-helicopters-h145
B27: 109 | C27: Airbus | D27: 1 | E27: H155 | F27: Airbus H155 | G27: H155 | H27: H155 | I27: =MATCH("*"&E27&"*",Sheet1!C:C,0) ->  | J27: =MATCH("*"&G27&"*",Sheet1!C:C,0) ->  | K27: =MATCH("*"&H27&"*",Sheet1!B:B,0) ->  | L27: 14 | N27: https://www.bjtonline.com/aircraft/airbus-helicopters-h155
B28: 110 | C28: Airbus | D28: 1 | E28: H160 | F28: Airbus H160 | G28: H160 | H28: H160 | I28: =MATCH("*"&E28&"*",Sheet1!C:C,0) ->  | J28: =MATCH("*"&G28&"*",Sheet1!C:C,0) ->  | K28: =MATCH("*"&H28&"*",Sheet1!B:B,0) ->  | L28: 14 | N28: https://www.businessinsider.com/airbus-luxury-helicopter-seat-10-people-for-around-14-million-2020-9
B29: 102 | C29: Airbus | D29: 1 | E29: H175 | F29: Airbus H175 | G29: H175 | H29: H175 | I29: =MATCH("*"&E29&"*",Sheet1!C:C,0) ->  | J29: =MATCH("*"&G29&"*",Sheet1!C:C,0) ->  | K29: =MATCH("*"&H29&"*",Sheet1!B:B,0) ->  | L29: 17 | N29: https://www.bjtonline.com/aircraft/airbus-helicopters-h175
B30: 105 | C30: Airbus | D30: 1 | E30: H215 / H225 | F30: Airbus H215 / H225 | G30: H215 / H225 | H30: H215 / H225 | I30: =MATCH("*"&E30&"*",Sheet1!C:C,0) ->  | J30: =MATCH("*"&G30&"*",Sheet1!C:C,0) ->  | K30: =MATCH("*"&H30&"*",Sheet1!B:B,0) ->  | L30: 18 | N30: https://www.bjtonline.com/aircraft/airbus-helicopters-h215-l1
B31: 106 | C31: Airbus | D31: 1 | E31: H355 | F31: Airbus H355 | G31: H355 | H31: H355 | I31: =MATCH("*"&E31&"*",Sheet1!C:C,0) ->  | J31: =MATCH("*"&G31&"*",Sheet1!C:C,0) ->  | K31: =MATCH("*"&H31&"*",Sheet1!B:B,0) ->  | L31: 1.9 | N31: https://www.bjtonline.com/aircraft/airbus-helicopters-as355f2-twinstar
B32: 645 | C32: Airbus | D32: 1 | E32: X6 | F32: Airbus X6 | G32: X6 | H32: X6 | I32: =MATCH("*"&E32&"*",Sheet1!C:C,0) ->  | J32: =MATCH("*"&G32&"*",Sheet1!C:C,0) ->  | K32: =MATCH("*"&H32&"*",Sheet1!B:B,0) ->  | L32: x | M32: concept
B33: 221 | C33: Airbus | D33: 1 | E33: A220 | F33: Airbus A220-100 | G33: A220-100 | H33: A220-100 | I33: =MATCH("*"&E33&"*",Sheet1!C:C,0) -> 3 | J33: =MATCH("*"&G33&"*",Sheet1!C:C,0) ->  | K33: =MATCH("*"&H33&"*",Sheet1!B:B,0) -> 3 | L33: =INDEX(Sheet1!$A:$K,MATCH($H33,Sheet1!$B:$B,0),MATCH(L$1,Sheet1!$A$1:$K$1,0)) -> 81 | N33: =INDEX(Sheet1!$A:$K,MATCH($H33,Sheet1!$B:$B,0),MATCH(N$1,Sheet1!$A$1:$K$1,0)) -> https://simpleflying.com/how-much-do-airbus-aircraft-cost/
B34: 222 | C34: Airbus | D34: 1 | E34: A220 | F34: Airbus A220-300 | G34: A220-300 | H34: A220-300 | I34: =MATCH("*"&E34&"*",Sheet1!C:C,0) -> 3 | J34: =MATCH("*"&G34&"*",Sheet1!C:C,0) ->  | K34: =MATCH("*"&H34&"*",Sheet1!B:B,0) -> 4 | L34: =INDEX(Sheet1!$A:$K,MATCH($H34,Sheet1!$B:$B,0),MATCH(L$1,Sheet1!$A$1:$K$1,0)) -> 91.5 | N34: =INDEX(Sheet1!$A:$K,MATCH($H34,Sheet1!$B:$B,0),MATCH(N$1,Sheet1!$A$1:$K$1,0)) -> https://simpleflying.com/how-much-do-airbus-aircraft-cost/
B35: 653 | C35: Airbus | D35: 1 | E35: A220 | F35: Airbus A220-500 | G35: A220-500 | H35: A220-500 | I35: =MATCH("*"&E35&"*",Sheet1!C:C,0) -> 3 | J35: =MATCH("*"&G35&"*",Sheet1!C:C,0) ->  | K35: =MATCH("*"&H35&"*",Sheet1!B:B,0) ->  | L35: x | M35: concept
B36: 634 | C36: Airbus | D36: 1 | E36: A320ceo | F36: A319-100 | G36: A319-100 | H36: A319-100 | I36: =MATCH("*"&E36&"*",Sheet1!C:C,0) ->  | J36: =MATCH("*"&G36&"*",Sheet1!C:C,0) ->  | K36: =MATCH("*"&H36&"*",Sheet1!B:B,0) ->  | L36: 89
B37: 633 | C37: Airbus | D37: 1 | E37: A320ceo | F37: A320-200 | G37: A320-200 | H37: A320-200 | I37: =MATCH("*"&E37&"*",Sheet1!C:C,0) ->  | J37: =MATCH("*"&G37&"*",Sheet1!C:C,0) ->  | K37: =MATCH("*"&H37&"*",Sheet1!B:B,0) ->  | L37: 98
B38: 206 | C38: Airbus | D38: 1 | E38: A320ceo | F38: Airbus A319ceo | G38: A319ceo | H38: A319ceo | I38: =MATCH("*"&E38&"*",Sheet1!C:C,0) ->  | J38: =MATCH("*"&G38&"*",Sheet1!C:C,0) ->  | K38: =MATCH("*"&H38&"*",Sheet1!B:B,0) ->  | L38: 92.3 | N38: https://simpleflying.com/how-much-do-airbus-aircraft-cost/
B39: 207 | C39: Airbus | D39: 1 | E39: A320ceo | F39: Airbus A320ceo | G39: A320ceo | H39: A320ceo | I39: =MATCH("*"&E39&"*",Sheet1!C:C,0) ->  | J39: =MATCH("*"&G39&"*",Sheet1!C:C,0) ->  | K39: =MATCH("*"&H39&"*",Sheet1!B:B,0) ->  | L39: 101 | N39: https://simpleflying.com/how-much-do-airbus-aircraft-cost/
B40: 208 | C40: Airbus | D40: 1 | E40: A320ceo | F40: Airbus A321ceo | G40: A321ceo | H40: A321ceo | I40: =MATCH("*"&E40&"*",Sheet1!C:C,0) ->  | J40: =MATCH("*"&G40&"*",Sheet1!C:C,0) ->  | K40: =MATCH("*"&H40&"*",Sheet1!B:B,0) ->  | L40: 118.3 | N40: https://simpleflying.com/how-much-do-airbus-aircraft-cost/
B41: 513 | C41: Airbus | D41: 1 | E41: A320neo | F41: Airbus A319neo | G41: A319neo | H41: A319neo | I41: =MATCH("*"&E41&"*",Sheet1!C:C,0) ->  | J41: =MATCH("*"&G41&"*",Sheet1!C:C,0) ->  | K41: =MATCH("*"&H41&"*",Sheet1!B:B,0) -> 7 | L41: =INDEX(Sheet1!$A:$K,MATCH($H41,Sheet1!$B:$B,0),MATCH(L$1,Sheet1!$A$1:$K$1,0)) -> 101.5 | N41: =INDEX(Sheet1!$A:$K,MATCH($H41,Sheet1!$B:$B,0),MATCH(N$1,Sheet1!$A$1:$K$1,0)) -> https://simpleflying.com/how-much-do-airbus-aircraft-cost/
B42: 514 | C42: Airbus | D42: 1 | E42: A320neo | F42: Airbus A320neo | G42: A320neo | H42: A320neo | I42: =MATCH("*"&E42&"*",Sheet1!C:C,0) ->  | J42: =MATCH("*"&G42&"*",Sheet1!C:C,0) ->  | K42: =MATCH("*"&H42&"*",Sheet1!B:B,0) ->  | L42: 110.6 | N42: https://simpleflying.com/how-much-do-airbus-aircraft-cost/
B43: 660 | C43: Airbus | D43: 1 | E43: A320neo | F43: Airbus A321 LR | G43: A321 LR | H43: A321 LR | I43: =MATCH("*"&E43&"*",Sheet1!C:C,0) ->  | J43: =MATCH("*"&G43&"*",Sheet1!C:C,0) ->  | K43: =MATCH("*"&H43&"*",Sheet1!B:B,0) ->  | L43: 129.5 | M43: guess | N43: https://www.forbes.com/sites/michaelgoldstein/2019/12/04/united-airlines-to-buy-50-ultra-long-range-airbus-a321xlr-aircraft-in-estimated-6-billion-deal/
B44: 662 | C44: Airbus | D44: 1 | E44: A320neo | F44: Airbus A321 XLR | G44: A321 XLR | H44: A321 XLR | I44: =MATCH("*"&E44&"*",Sheet1!C:C,0) ->  | J44: =MATCH("*"&G44&"*",Sheet1!C:C,0) ->  | K44: =MATCH("*"&H44&"*",Sheet1!B:B,0) ->  | L44: 129.5 | M44: guess | N44: https://www.forbes.com/sites/michaelgoldstein/2019/12/04/united-airlines-to-buy-50-ultra-long-range-airbus-a321xlr-aircraft-in-estimated-6-billion-deal/
B45: 515 | C45: Airbus | D45: 1 | E45: A320neo | F45: Airbus A321neo | G45: A321neo | H45: A321neo | I45: =MATCH("*"&E45&"*",Sheet1!C:C,0) ->  | J45: =MATCH("*"&G45&"*",Sheet1!C:C,0) ->  | K45: =MATCH("*"&H45&"*",Sheet1!B:B,0) -> 10 | L45: =INDEX(Sheet1!$A:$K,MATCH($H45,Sheet1!$B:$B,0),MATCH(L$1,Sheet1!$A$1:$K$1,0)) -> 129.5 | N45: =INDEX(Sheet1!$A:$K,MATCH($H45,Sheet1!$B:$B,0),MATCH(N$1,Sheet1!$A$1:$K$1,0)) -> https://simpleflying.com/how-much-do-airbus-aircraft-cost/
B46: 654 | C46: Airbus | D46: 1 | E46: A320neo | F46: Airbus A322X | G46: A322X | H46: A322X | I46: =MATCH("*"&E46&"*",Sheet1!C:C,0) ->  | J46: =MATCH("*"&G46&"*",Sheet1!C:C,0) ->  | K46: =MATCH("*"&H46&"*",Sheet1!B:B,0) ->  | L46: x | M46: concept
B47: 212 | C47: Airbus | D47: 1 | E47: A330 | F47: Airbus A330-200 | G47: A330-200 | H47: A330-200 | I47: =MATCH("*"&E47&"*",Sheet1!C:C,0) -> 11 | J47: =MATCH("*"&G47&"*",Sheet1!C:C,0) ->  | K47: =MATCH("*"&H47&"*",Sheet1!B:B,0) -> 11 | L47: =INDEX(Sheet1!$A:$K,MATCH($H47,Sheet1!$B:$B,0),MATCH(L$1,Sheet1!$A$1:$K$1,0)) -> 231.5 | N47: =INDEX(Sheet1!$A:$K,MATCH($H47,Sheet1!$B:$B,0),MATCH(N$1,Sheet1!$A$1:$K$1,0)) -> http://www.axonaviation.com/commercial-aircraft/aircraft-data/aircraft-pricing
B48: 213 | C48: Airbus | D48: 1 | E48: A330 | F48: Airbus A330-300 | G48: A330-300 | H48: A330-300 | I48: =MATCH("*"&E48&"*",Sheet1!C:C,0) -> 11 | J48: =MATCH("*"&G48&"*",Sheet1!C:C,0) ->  | K48: =MATCH("*"&H48&"*",Sheet1!B:B,0) -> 13 | L48: =INDEX(Sheet1!$A:$K,MATCH($H48,Sheet1!$B:$B,0),MATCH(L$1,Sheet1!$A$1:$K$1,0)) -> 256.4 | N48: =INDEX(Sheet1!$A:$K,MATCH($H48,Sheet1!$B:$B,0),MATCH(N$1,Sheet1!$A$1:$K$1,0)) -> http://www.axonaviation.com/commercial-aircraft/aircraft-data/aircraft-pricing
B49: 214 | C49: Airbus | D49: 1 | E49: A330 | F49: Airbus A330-800neo | G49: A330-800neo | H49: A330-800neo | I49: =MATCH("*"&E49&"*",Sheet1!C:C,0) -> 11 | J49: =MATCH("*"&G49&"*",Sheet1!C:C,0) ->  | K49: =MATCH("*"&H49&"*",Sheet1!B:B,0) -> 14 | L49: =INDEX(Sheet1!$A:$K,MATCH($H49,Sheet1!$B:$B,0),MATCH(L$1,Sheet1!$A$1:$K$1,0)) -> 259.9 | N49: =INDEX(Sheet1!$A:$K,MATCH($H49,Sheet1!$B:$B,0),MATCH(N$1,Sheet1!$A$1:$K$1,0)) -> https://simpleflying.com/how-much-do-airbus-aircraft-cost/
B50: 215 | C50: Airbus | D50: 1 | E50: A330 | F50: Airbus A330-900neo | G50: A330-900neo | H50: A330-900neo | I50: =MATCH("*"&E50&"*",Sheet1!C:C,0) -> 11 | J50: =MATCH("*"&G50&"*",Sheet1!C:C,0) ->  | K50: =MATCH("*"&H50&"*",Sheet1!B:B,0) -> 15 | L50: =INDEX(Sheet1!$A:$K,MATCH($H50,Sheet1!$B:$B,0),MATCH(L$1,Sheet1!$A$1:$K$1,0)) -> 296.4 | N50: =INDEX(Sheet1!$A:$K,MATCH($H50,Sheet1!$B:$B,0),MATCH(N$1,Sheet1!$A$1:$K$1,0)) -> https://simpleflying.com/how-much-do-airbus-aircraft-cost/
B51: 304 | C51: Airbus | D51: 1 | E51: A340 | F51: Airbus A340-200/300 | G51: A340-200/300 | H51: A340-200/300 | I51: =MATCH("*"&E51&"*",Sheet1!C:C,0) ->  | J51: =MATCH("*"&G51&"*",Sheet1!C:C,0) ->  | K51: =MATCH("*"&H51&"*",Sheet1!B:B,0) ->  | L51: x | M51: OOP
B52: 5 | C52: Airbus | D52: 1 | E52: A340 | F52: Airbus A340-500/600 | G52: A340-500/600 | H52: A340-500/600 | I52: =MATCH("*"&E52&"*",Sheet1!C:C,0) ->  | J52: =MATCH("*"&G52&"*",Sheet1!C:C,0) ->  | K52: =MATCH("*"&H52&"*",Sheet1!B:B,0) ->  | L52: x | M52: OOP
B53: 6 | C53: Airbus | D53: 1 | E53: A350 | F53: Airbus A350 XWB - A350-900 | G53: A350 XWB - A350-900 | H53: A350 XWB - A350-900 | I53: =MATCH("*"&E53&"*",Sheet1!C:C,0) -> 17 | J53: =MATCH("*"&G53&"*",Sheet1!C:C,0) ->  | K53: =MATCH("*"&H53&"*",Sheet1!B:B,0) ->  | L53: 308.1 | N53: http://www.axonaviation.com/commercial-aircraft/aircraft-data/aircraft-pricing
B54: 7 | C54: Airbus | D54: 1 | E54: A350 | F54: Airbus A350-1000 | G54: A350-1000 | H54: A350-1000 | I54: =MATCH("*"&E54&"*",Sheet1!C:C,0) -> 17 | J54: =MATCH("*"&G54&"*",Sheet1!C:C,0) ->  | K54: =MATCH("*"&H54&"*",Sheet1!B:B,0) -> 18 | L54: =INDEX(Sheet1!$A:$K,MATCH($H54,Sheet1!$B:$B,0),MATCH(L$1,Sheet1!$A$1:$K$1,0)) -> 355.7 | N54: =INDEX(Sheet1!$A:$K,MATCH($H54,Sheet1!$B:$B,0),MATCH(N$1,Sheet1!$A$1:$K$1,0)) -> http://www.axonaviation.com/commercial-aircraft/aircraft-data/aircraft-pricing
B55: 657 | C55: Airbus | D55: 1 | E55: A350 | F55: Airbus A350-1000neo | G55: A350-1000neo | H55: A350-1000neo | I55: =MATCH("*"&E55&"*",Sheet1!C:C,0) -> 17 | J55: =MATCH("*"&G55&"*",Sheet1!C:C,0) ->  | K55: =MATCH("*"&H55&"*",Sheet1!B:B,0) ->  | L55: 355 | N55: http://www.axonaviation.com/commercial-aircraft/aircraft-data/aircraft-pricing
B56: 656 | C56: Airbus | D56: 1 | E56: A350 | F56: Airbus A350-900neo | G56: A350-900neo | H56: A350-900neo | I56: =MATCH("*"&E56&"*",Sheet1!C:C,0) -> 17 | J56: =MATCH("*"&G56&"*",Sheet1!C:C,0) ->  | K56: =MATCH("*"&H56&"*",Sheet1!B:B,0) ->  | L56: 308.1 | N56: http://www.axonaviation.com/commercial-aircraft/aircraft-data/aircraft-pricing
B57: 305 | C57: Airbus | D57: 1 | E57: Airbus A300 | F57: Airbus A300 | G57: A300 | H57: A300 | I57: =MATCH("*"&E57&"*",Sheet1!C:C,0) ->  | J57: =MATCH("*"&G57&"*",Sheet1!C:C,0) ->  | K57: =MATCH("*"&H57&"*",Sheet1!B:B,0) ->  | L57: x | M57: OOP
B58: 216 | C58: Airbus | D58: 1 | E58: A380 | F58: Airbus A380 | G58: A380 | H58: A380 | I58: =MATCH("*"&E58&"*",Sheet1!C:C,0) -> 19 | J58: =MATCH("*"&G58&"*",Sheet1!C:C,0) -> 19 | K58: =MATCH("*"&H58&"*",Sheet1!B:B,0) -> 19 | L58: =INDEX(Sheet1!$A:$K,MATCH($H58,Sheet1!$B:$B,0),MATCH(L$1,Sheet1!$A$1:$K$1,0)) -> 350 | N58: =INDEX(Sheet1!$A:$K,MATCH($H58,Sheet1!$B:$B,0),MATCH(N$1,Sheet1!$A$1:$K$1,0)) -> http://www.axonaviation.com/commercial-aircraft/aircraft-data/aircraft-pricing
B59: 551 | C59: Airbus | D59: 1 | E59: A330 MRTT | F59: Airbus A330 MRTT | G59: A330 MRTT | H59: A330 MRTT | I59: =MATCH("*"&E59&"*",Sheet1!C:C,0) ->  | J59: =MATCH("*"&G59&"*",Sheet1!C:C,0) ->  | K59: =MATCH("*"&H59&"*",Sheet1!B:B,0) ->  | L59: 340 | N59: https://simpleflying.com/how-much-do-military-transport-aircraft-cost/
B60: 150 | C60: Airbus | D60: 1 | E60: A400M Atlas | F60: Airbus A400M Atlas | G60: A400M Atlas | H60: A400M Atlas | I60: =MATCH("*"&E60&"*",Sheet1!C:C,0) ->  | J60: =MATCH("*"&G60&"*",Sheet1!C:C,0) ->  | K60: =MATCH("*"&H60&"*",Sheet1!B:B,0) ->  | L60: 190 | N60: https://weaponsystems.net/system/673-Airbus+A400M+Atlas
B61: 155 | C61: Alenia | D61: 1 | E61: Alenia C-27J | F61: Alenia C-27J | G61: C-27J | H61: C-27J | I61: =MATCH("*"&E61&"*",Sheet1!C:C,0) ->  | J61: =MATCH("*"&G61&"*",Sheet1!C:C,0) ->  | K61: =MATCH("*"&H61&"*",Sheet1!B:B,0) ->  | L61: 40 | N61: https://simpleflying.com/how-much-do-military-transport-aircraft-cost/
B62: 668 | C62: ATR | D62: 1 | E62: ATR 42/72 | F62: ATR 72-600F | G62: 72-600F | H62: 72-600F | I62: =MATCH("*"&E62&"*",Sheet1!C:C,0) ->  | J62: =MATCH("*"&G62&"*",Sheet1!C:C,0) ->  | K62: =MATCH("*"&H62&"*",Sheet1!B:B,0) ->  | L62: 26 | N62: https://www.paramountbusinessjets.com/private-jet-charter/aircraft/atr-72-600
B63: 667 | C63: ATR | D63: 1 | E63: ATR 42/72 | F63: ATR 72/42 Freighter Conversion | G63: 72/42 Freighter Conversion | H63: 72/42 Freighter Conversion | I63: =MATCH("*"&E63&"*",Sheet1!C:C,0) ->  | J63: =MATCH("*"&G63&"*",Sheet1!C:C,0) ->  | K63: =MATCH("*"&H63&"*",Sheet1!B:B,0) -> 
B64: 191 | C64: ATR | D64: 1 | E64: ATR 42/72 | F64: ATR 42 | G64: 42 | H64: 42 | I64: =MATCH("*"&E64&"*",Sheet1!C:C,0) ->  | J64: =MATCH("*"&G64&"*",Sheet1!C:C,0) ->  | K64: =MATCH("*"&H64&"*",Sheet1!B:B,0) -> 
B65: 26 | C65: ATR | D65: 1 | E65: ATR 42/72 | F65: ATR 72 | G65: 72 | H65: 72 | I65: =MATCH("*"&E65&"*",Sheet1!C:C,0) ->  | J65: =MATCH("*"&G65&"*",Sheet1!C:C,0) ->  | K65: =MATCH("*"&H65&"*",Sheet1!B:B,0) -> 
B66: 647 | C66: ATR | D66: 1 | E66: ATR 42/72X | F66: ATR 42/72X | G66: 42/72X | H66: 42/72X | I66: =MATCH("*"&E66&"*",Sheet1!C:C,0) ->  | J66: =MATCH("*"&G66&"*",Sheet1!C:C,0) ->  | K66: =MATCH("*"&H66&"*",Sheet1!B:B,0) -> 
B67: 616 | C67: AVIC | D67: 1 | E67: AVIC MA700 | F67: AVIC MA700 | G67: =TRIM(SUBSTITUTE(F67,C67,"")) -> MA700 | H67: =TRIM(SUBSTITUTE(G67,"Family","")) -> MA700 | I67: =MATCH("*"&E67&"*",Sheet1!C:C,0) ->  | J67: =MATCH("*"&G67&"*",Sheet1!C:C,0) ->  | K67: =MATCH("*"&H67&"*",Sheet1!B:B,0) ->  | L67: 25 | N67: https://aerocorner.com/aircraft/xian-ma700/
B68: 548 | C68: Ayres | D68: 1 | E68: Ayres Thrush 510 | F68: Ayres Thrush 510 | G68: Thrush 510 | H68: Thrush 510 | I68: =MATCH("*"&E68&"*",Sheet1!C:C,0) ->  | J68: =MATCH("*"&G68&"*",Sheet1!C:C,0) ->  | K68: =MATCH("*"&H68&"*",Sheet1!B:B,0) ->  | L68: 0.869 | N68: https://www.flyingmag.com/aircraft-turboprops-thrush-510g/
B69: 549 | C69: Ayres | D69: 1 | E69: Ayres Thrush SR2 | F69: Ayres Thrush SR2 | G69: Thrush SR2 | H69: Thrush SR2 | I69: =MATCH("*"&E69&"*",Sheet1!C:C,0) ->  | J69: =MATCH("*"&G69&"*",Sheet1!C:C,0) ->  | K69: =MATCH("*"&H69&"*",Sheet1!B:B,0) ->  | L69: 0.8 | N69: https://janes.migavia.com/usa/thrush/thrush-turbo-thrush-s2r.html
B70: 167 | C70: BAE | D70: 1 | E70: Hawk | F70: BAE Systems Hawk | G70: Systems Hawk | H70: Systems Hawk | I70: =MATCH("*"&E70&"*",Sheet1!C:C,0) ->  | J70: =MATCH("*"&G70&"*",Sheet1!C:C,0) ->  | K70: =MATCH("*"&H70&"*",Sheet1!B:B,0) -> 
B71: 643 | C71: BAES/Leonardo | D71: 1 | E71: BAES/Leonardo Tempest | F71: BAES/Leonardo Tempest | G71: Tempest | H71: Tempest | I71: =MATCH("*"&E71&"*",Sheet1!C:C,0) ->  | J71: =MATCH("*"&G71&"*",Sheet1!C:C,0) ->  | K71: =MATCH("*"&H71&"*",Sheet1!B:B,0) -> 
B72: 901 | C72: Bayraktar | D72: 1 | E72: Bayraktar TB-2 | F72: Bayraktar TB-2 | G72: TB-2 | H72: TB-2 | I72: =MATCH("*"&E72&"*",Sheet1!C:C,0) ->  | J72: =MATCH("*"&G72&"*",Sheet1!C:C,0) ->  | K72: =MATCH("*"&H72&"*",Sheet1!B:B,0) ->  | L72: 2 | N72: https://www.defensenews.com/unmanned/2023/06/14/kuwait-to-buy-turkish-made-tb2-drones-in-367-million-deal/
B73: 80 | C73: Beechcraft | D73: 1 | E73: Beechcraft King Air | F73: Beechcraft King Air | G73: King Air | H73: King Air | I73: =MATCH("*"&E73&"*",Sheet1!C:C,0) ->  | J73: =MATCH("*"&G73&"*",Sheet1!C:C,0) ->  | K73: =MATCH("*"&H73&"*",Sheet1!B:B,0) ->  | L73: 8 | M73: 350i | N73: https://www.sherpareport.com/aircraft/costs-king-air-350.html
B74: 31 | C74: Beechcraft | D74: 1 | E74: Other light aircraft | F74: Beechcraft Premier I | G74: Premier I | H74: Premier I | I74: =MATCH("*"&E74&"*",Sheet1!C:C,0) ->  | J74: =MATCH("*"&G74&"*",Sheet1!C:C,0) ->  | K74: =MATCH("*"&H74&"*",Sheet1!B:B,0) ->  | L74: 1.9 | M74: used | N74: https://www.libertyjet.com/private_jets_for_sale/Beechcraft%20Corp./Premier%20I
B75: 169 | C75: Beechcraft | D75: 1 | E75: Beechcraft T-6 Texan II | F75: Beechcraft T-6 Texan II | G75: T-6 Texan II | H75: T-6 Texan II | I75: =MATCH("*"&E75&"*",Sheet1!C:C,0) ->  | J75: =MATCH("*"&G75&"*",Sheet1!C:C,0) ->  | K75: =MATCH("*"&H75&"*",Sheet1!B:B,0) ->  | L75: 4.272 | N75: https://www.af.mil/About-Us/Fact-Sheets/Display/Article/104548/t-6a-texan-ii/
B76: 92 | C76: Bell | D76: 1 | E76: AH-1 | F76: Bell AH-1Z Viper | G76: AH-1Z Viper | H76: AH-1Z Viper | I76: =MATCH("*"&E76&"*",Sheet1!C:C,0) ->  | J76: =MATCH("*"&G76&"*",Sheet1!C:C,0) ->  | K76: =MATCH("*"&H76&"*",Sheet1!B:B,0) ->  | L76: 31 | N76: https://warriorlodge.com/pages/bell-ah-1z-viper
B77: 132 | C77: Bell | D77: 1 | E77: Future Attack Reconnaissance Aircraft | F77: Bell V-280 Valor | G77: V-280 Valor | H77: V-280 Valor | I77: =MATCH("*"&E77&"*",Sheet1!C:C,0) ->  | J77: =MATCH("*"&G77&"*",Sheet1!C:C,0) ->  | K77: =MATCH("*"&H77&"*",Sheet1!B:B,0) ->  | L77: 43 | N77: https://simpleflying.com/bell-v280-valor-complete-guide/
B78: 646 | C78: Bell | D78: 1 | E78: 412X | F78: Bell 412X | G78: 412X | H78: 412X | I78: =MATCH("*"&E78&"*",Sheet1!C:C,0) ->  | J78: =MATCH("*"&G78&"*",Sheet1!C:C,0) ->  | K78: =MATCH("*"&H78&"*",Sheet1!B:B,0) -> 
B79: 90 | C79: Bell | D79: 1 | E79: Bell 407 | F79: Bell 407 | G79: 407 | H79: 407 | I79: =MATCH("*"&E79&"*",Sheet1!C:C,0) ->  | J79: =MATCH("*"&G79&"*",Sheet1!C:C,0) ->  | K79: =MATCH("*"&H79&"*",Sheet1!B:B,0) -> 
B80: 91 | C80: Bell | D80: 1 | E80: Bell 429 GlobalRanger | F80: Bell 429 GlobalRanger | G80: 429 GlobalRanger | H80: 429 GlobalRanger | I80: =MATCH("*"&E80&"*",Sheet1!C:C,0) ->  | J80: =MATCH("*"&G80&"*",Sheet1!C:C,0) ->  | K80: =MATCH("*"&H80&"*",Sheet1!B:B,0) ->  | L80: 7.5 | N80: https://www.fairlifts.com/helicopters/guide-to-2023-helicopter-prices/
B81: 89 | C81: Bell | D81: 1 | E81: Bell 505 Jet Ranger X | F81: Bell 505 Jet Ranger X | G81: 505 Jet Ranger X | H81: 505 Jet Ranger X | I81: =MATCH("*"&E81&"*",Sheet1!C:C,0) ->  | J81: =MATCH("*"&G81&"*",Sheet1!C:C,0) ->  | K81: =MATCH("*"&H81&"*",Sheet1!B:B,0) ->  | L81: 1.3 | N81: https://www.fairlifts.com/helicopters/guide-to-2023-helicopter-prices/
B82: 93 | C82: Bell | D82: 1 | E82: Bell 525 Relentless | F82: Bell 525 Relentless | G82: 525 Relentless | H82: 525 Relentless | I82: =MATCH("*"&E82&"*",Sheet1!C:C,0) ->  | J82: =MATCH("*"&G82&"*",Sheet1!C:C,0) ->  | K82: =MATCH("*"&H82&"*",Sheet1!B:B,0) -> 
B83: 182 | C83: Bell | D83: 1 | E83: OH-58 | F83: Bell OH-58D Kiowa | G83: OH-58D Kiowa | H83: OH-58D Kiowa | I83: =MATCH("*"&E83&"*",Sheet1!C:C,0) ->  | J83: =MATCH("*"&G83&"*",Sheet1!C:C,0) ->  | K83: =MATCH("*"&H83&"*",Sheet1!B:B,0) -> 
B84: 94 | C84: Bell | D84: 1 | E84: UH-1 | F84: Bell UH-1 Iroquois/412 | G84: UH-1 Iroquois/412 | H84: UH-1 Iroquois/412 | I84: =MATCH("*"&E84&"*",Sheet1!C:C,0) ->  | J84: =MATCH("*"&G84&"*",Sheet1!C:C,0) ->  | K84: =MATCH("*"&H84&"*",Sheet1!B:B,0) -> 
B85: 95 | C85: Bell | D85: 1 | E85: UH-1 | F85: Bell UH-1Y Venom | G85: UH-1Y Venom | H85: UH-1Y Venom | I85: =MATCH("*"&E85&"*",Sheet1!C:C,0) ->  | J85: =MATCH("*"&G85&"*",Sheet1!C:C,0) ->  | K85: =MATCH("*"&H85&"*",Sheet1!B:B,0) -> 
B86: 97 | C86: Bell Boeing | D86: 1 | E86: V-22 | F86: Bell Boeing V-22 Osprey | G86: V-22 Osprey | H86: V-22 Osprey | I86: =MATCH("*"&E86&"*",Sheet1!C:C,0) ->  | J86: =MATCH("*"&G86&"*",Sheet1!C:C,0) ->  | K86: =MATCH("*"&H86&"*",Sheet1!B:B,0) -> 
B87: 529 | C87: Boeing | D87: 1 | E87: BBJ | F87: Boeing BBJ MAX | G87: BBJ MAX | H87: BBJ MAX | I87: =MATCH("*"&E87&"*",Sheet1!C:C,0) ->  | J87: =MATCH("*"&G87&"*",Sheet1!C:C,0) ->  | K87: =MATCH("*"&H87&"*",Sheet1!B:B,0) ->  | L87: =AVERAGE(101.5,110.5,118.5) -> 110.1666667
B88: 297 | C88: Boeing | D88: 1 | E88: BBJ | F88: Boeing BBJ/BBJ2/BBJ3 | G88: BBJ/BBJ2/BBJ3 | H88: BBJ/BBJ2/BBJ3 | I88: =MATCH("*"&E88&"*",Sheet1!C:C,0) ->  | J88: =MATCH("*"&G88&"*",Sheet1!C:C,0) ->  | K88: =MATCH("*"&H88&"*",Sheet1!B:B,0) -> 
B89: 594 | C89: Boeing | D89: 1 | E89: Boeing 747 | F89: Boeing 747-8 VIP | G89: 747-8 VIP | H89: 747-8 VIP | I89: =MATCH("*"&E89&"*",Sheet1!C:C,0) ->  | J89: =MATCH("*"&G89&"*",Sheet1!C:C,0) ->  | K89: =MATCH("*"&H89&"*",Sheet1!B:B,0) ->  | L89: 418.4 | N89: https://finance.yahoo.com/news/5-priciest-private-jets-2023-185110930.html
B90: 298 | C90: Boeing | D90: 1 | E90: Wide body VIP | F90: Boeing BBJ 777 | G90: BBJ 777 | H90: BBJ 777 | I90: =MATCH("*"&E90&"*",Sheet1!C:C,0) ->  | J90: =MATCH("*"&G90&"*",Sheet1!C:C,0) ->  | K90: =MATCH("*"&H90&"*",Sheet1!B:B,0) -> 
B91: 553 | C91: Boeing | D91: 1 | E91: Wide body VIP | F91: Boeing BBJ 777X | G91: BBJ 777X | H91: BBJ 777X | I91: =MATCH("*"&E91&"*",Sheet1!C:C,0) ->  | J91: =MATCH("*"&G91&"*",Sheet1!C:C,0) ->  | K91: =MATCH("*"&H91&"*",Sheet1!B:B,0) -> 
B92: 554 | C92: Boeing | D92: 1 | E92: Wide body VIP | F92: Boeing BBJ 787 | G92: BBJ 787 | H92: BBJ 787 | I92: =MATCH("*"&E92&"*",Sheet1!C:C,0) ->  | J92: =MATCH("*"&G92&"*",Sheet1!C:C,0) ->  | K92: =MATCH("*"&H92&"*",Sheet1!B:B,0) ->  | L92: 200 | N92: https://finance.yahoo.com/news/5-priciest-private-jets-2023-185110930.html
B93: 179 | C93: Boeing | D93: 1 | E93: Boeing/Saab T-X program | F93: Boeing T-7 | G93: T-7 | H93: T-7 | I93: =MATCH("*"&E93&"*",Sheet1!C:C,0) ->  | J93: =MATCH("*"&G93&"*",Sheet1!C:C,0) ->  | K93: =MATCH("*"&H93&"*",Sheet1!B:B,0) -> 
B94: 637 | C94: Boeing | D94: 1 | E94: F-18 | F94: F-18 A/D | G94: F-18 A/D | H94: F-18 A/D | I94: =MATCH("*"&E94&"*",Sheet1!C:C,0) ->  | J94: =MATCH("*"&G94&"*",Sheet1!C:C,0) ->  | K94: =MATCH("*"&H94&"*",Sheet1!B:B,0) -> 
B95: 140 | C95: Boeing | D95: 1 | E95: F-18 | F95: F-18 Super Hornet | G95: F-18 Super Hornet | H95: F-18 Super Hornet | I95: =MATCH("*"&E95&"*",Sheet1!C:C,0) ->  | J95: =MATCH("*"&G95&"*",Sheet1!C:C,0) ->  | K95: =MATCH("*"&H95&"*",Sheet1!B:B,0) -> 
B96: 592 | C96: Boeing | D96: 1 | E96: Boeing 747 | F96: Boeing 747-400CF | G96: 747-400CF | H96: 747-400CF | I96: =MATCH("*"&E96&"*",Sheet1!C:C,0) ->  | J96: =MATCH("*"&G96&"*",Sheet1!C:C,0) ->  | K96: =MATCH("*"&H96&"*",Sheet1!B:B,0) -> 
B97: 629 | C97: Boeing | D97: 1 | E97: Boeing 747 | F97: Boeing 747-400F/ERF | G97: 747-400F/ERF | H97: 747-400F/ERF | I97: =MATCH("*"&E97&"*",Sheet1!C:C,0) ->  | J97: =MATCH("*"&G97&"*",Sheet1!C:C,0) ->  | K97: =MATCH("*"&H97&"*",Sheet1!B:B,0) -> 
B98: 567 | C98: Boeing | D98: 1 | E98: Boeing 747 | F98: Boeing 747-8F | G98: 747-8F | H98: 747-8F | I98: =MATCH("*"&E98&"*",Sheet1!C:C,0) ->  | J98: =MATCH("*"&G98&"*",Sheet1!C:C,0) ->  | K98: =MATCH("*"&H98&"*",Sheet1!B:B,0) -> 
B99: 664 | C99: Boeing | D99: 1 | E99: Boeing 777 | F99: Boeing 777-300 ERSF | G99: 777-300 ERSF | H99: 777-300 ERSF | I99: =MATCH("*"&E99&"*",Sheet1!C:C,0) ->  | J99: =MATCH("*"&G99&"*",Sheet1!C:C,0) ->  | K99: =MATCH("*"&H99&"*",Sheet1!B:B,0) -> 
B100: 568 | C100: Boeing | D100: 1 | E100: Boeing 777 | F100: Boeing 777F | G100: 777F | H100: 777F | I100: =MATCH("*"&E100&"*",Sheet1!C:C,0) ->  | J100: =MATCH("*"&G100&"*",Sheet1!C:C,0) ->  | K100: =MATCH("*"&H100&"*",Sheet1!B:B,0) -> 33 | L100: =INDEX(Sheet1!$A:$K,MATCH($H100,Sheet1!$B:$B,0),MATCH(L$1,Sheet1!$A$1:$K$1,0)) -> 352.3 | N100: =INDEX(Sheet1!$A:$K,MATCH($H100,Sheet1!$B:$B,0),MATCH(N$1,Sheet1!$A$1:$K$1,0)) -> http://www.axonaviation.com/commercial-aircraft/aircraft-data/aircraft-pricing
B101: 659 | C101: Boeing | D101: 1 | E101: Boeing 777X | F101: Boeing 777XF: 777-9 | G101: 777XF: 777-9 | H101: 777XF: 777-9 | I101: =MATCH("*"&E101&"*",Sheet1!C:C,0) ->  | J101: =MATCH("*"&G101&"*",Sheet1!C:C,0) ->  | K101: =MATCH("*"&H101&"*",Sheet1!B:B,0) -> 
B102: 570 | C102: Boeing | D102: 1 | E102: Boeing 767 | F102: Boeing 767-300BCF | G102: 767-300BCF | H102: 767-300BCF | I102: =MATCH("*"&E102&"*",Sheet1!C:C,0) ->  | J102: =MATCH("*"&G102&"*",Sheet1!C:C,0) ->  | K102: =MATCH("*"&H102&"*",Sheet1!B:B,0) -> 
B103: 569 | C103: Boeing | D103: 1 | E103: Boeing 767 | F103: Boeing 767-300F | G103: 767-300F | H103: 767-300F | I103: =MATCH("*"&E103&"*",Sheet1!C:C,0) ->  | J103: =MATCH("*"&G103&"*",Sheet1!C:C,0) ->  | K103: =MATCH("*"&H103&"*",Sheet1!B:B,0) -> 
B104: 573 | C104: Boeing | D104: 1 | E104: Boeing 737 | F104: Boeing 737-300SF | G104: 737-300SF | H104: 737-300SF | I104: =MATCH("*"&E104&"*",Sheet1!C:C,0) ->  | J104: =MATCH("*"&G104&"*",Sheet1!C:C,0) ->  | K104: =MATCH("*"&H104&"*",Sheet1!B:B,0) -> 
B105: 572 | C105: Boeing | D105: 1 | E105: Boeing 737 | F105: Boeing 737-400SF | G105: 737-400SF | H105: 737-400SF | I105: =MATCH("*"&E105&"*",Sheet1!C:C,0) ->  | J105: =MATCH("*"&G105&"*",Sheet1!C:C,0) ->  | K105: =MATCH("*"&H105&"*",Sheet1!B:B,0) -> 
B106: 591 | C106: Boeing | D106: 1 | E106: Boeing 737 | F106: Boeing 737-700C | G106: 737-700C | H106: 737-700C | I106: =MATCH("*"&E106&"*",Sheet1!C:C,0) ->  | J106: =MATCH("*"&G106&"*",Sheet1!C:C,0) ->  | K106: =MATCH("*"&H106&"*",Sheet1!B:B,0) -> 
B107: 571 | C107: Boeing | D107: 1 | E107: Boeing 737NG | F107: Boeing 737-700/-800CF | G107: 737-700/-800CF | H107: 737-700/-800CF | I107: =MATCH("*"&E107&"*",Sheet1!C:C,0) ->  | J107: =MATCH("*"&G107&"*",Sheet1!C:C,0) ->  | K107: =MATCH("*"&H107&"*",Sheet1!B:B,0) -> 
B108: 596 | C108: Boeing | D108: 1 | E108: Boeing 757 | F108: Boeing 757-200 PF/SF | G108: 757-200 PF/SF | H108: 757-200 PF/SF | I108: =MATCH("*"&E108&"*",Sheet1!C:C,0) ->  | J108: =MATCH("*"&G108&"*",Sheet1!C:C,0) ->  | K108: =MATCH("*"&H108&"*",Sheet1!B:B,0) -> 
B109: 98 | C109: Boeing | D109: 1 | E109: AH-64 | F109: Boeing AH-64 Apache | G109: AH-64 Apache | H109: AH-64 Apache | I109: =MATCH("*"&E109&"*",Sheet1!C:C,0) ->  | J109: =MATCH("*"&G109&"*",Sheet1!C:C,0) ->  | K109: =MATCH("*"&H109&"*",Sheet1!B:B,0) -> 
B110: 99 | C110: Boeing | D110: 1 | E110: AH-64 | F110: Boeing AH-64 Apache (reman) | G110: AH-64 Apache (reman) | H110: AH-64 Apache (reman) | I110: =MATCH("*"&E110&"*",Sheet1!C:C,0) ->  | J110: =MATCH("*"&G110&"*",Sheet1!C:C,0) ->  | K110: =MATCH("*"&H110&"*",Sheet1!B:B,0) -> 
B111: 100 | C111: Boeing | D111: 1 | E111: CH-47 | F111: Boeing CH-47 Chinook | G111: CH-47 Chinook | H111: CH-47 Chinook | I111: =MATCH("*"&E111&"*",Sheet1!C:C,0) ->  | J111: =MATCH("*"&G111&"*",Sheet1!C:C,0) ->  | K111: =MATCH("*"&H111&"*",Sheet1!B:B,0) -> 
B112: 101 | C112: Boeing | D112: 1 | E112: CH-47 | F112: Boeing CH-47 Chinook (reman) | G112: CH-47 Chinook (reman) | H112: CH-47 Chinook (reman) | I112: =MATCH("*"&E112&"*",Sheet1!C:C,0) ->  | J112: =MATCH("*"&G112&"*",Sheet1!C:C,0) ->  | K112: =MATCH("*"&H112&"*",Sheet1!B:B,0) -> 
B113: 299 | C113: Boeing | D113: 1 | E113: Boeing 717 | F113: Boeing 717 | G113: 717 | H113: 717 | I113: =MATCH("*"&E113&"*",Sheet1!C:C,0) ->  | J113: =MATCH("*"&G113&"*",Sheet1!C:C,0) ->  | K113: =MATCH("*"&H113&"*",Sheet1!B:B,0) -> 
B114: 534 | C114: Boeing | D114: 1 | E114: Boeing 737 Classic | F114: Boeing 737 Classic: 737-300 | G114: 737 Classic: 737-300 | H114: 737 Classic: 737-300 | I114: =MATCH("*"&E114&"*",Sheet1!C:C,0) ->  | J114: =MATCH("*"&G114&"*",Sheet1!C:C,0) ->  | K114: =MATCH("*"&H114&"*",Sheet1!B:B,0) -> 
B115: 535 | C115: Boeing | D115: 1 | E115: Boeing 737 Classic | F115: Boeing 737 Classic: 737-400 | G115: 737 Classic: 737-400 | H115: 737 Classic: 737-400 | I115: =MATCH("*"&E115&"*",Sheet1!C:C,0) ->  | J115: =MATCH("*"&G115&"*",Sheet1!C:C,0) ->  | K115: =MATCH("*"&H115&"*",Sheet1!B:B,0) -> 
B116: 536 | C116: Boeing | D116: 1 | E116: Boeing 737 Classic | F116: Boeing 737 Classic: 737-500 | G116: 737 Classic: 737-500 | H116: 737 Classic: 737-500 | I116: =MATCH("*"&E116&"*",Sheet1!C:C,0) ->  | J116: =MATCH("*"&G116&"*",Sheet1!C:C,0) ->  | K116: =MATCH("*"&H116&"*",Sheet1!B:B,0) -> 
B117: 309 | C117: Boeing | D117: 1 | E117: Boeing 737MAX | F117: Boeing 737 MAX: 737 MAX 10 | G117: 737 MAX: 737 MAX 10 | H117: 737 MAX: 737 MAX 10 | I117: =MATCH("*"&E117&"*",Sheet1!C:C,0) ->  | J117: =MATCH("*"&G117&"*",Sheet1!C:C,0) ->  | K117: =MATCH("*"&H117&"*",Sheet1!B:B,0) -> 
B118: 195 | C118: Boeing | D118: 1 | E118: Boeing 737MAX | F118: Boeing 737 MAX: 737 MAX 7 | G118: 737 MAX: 737 MAX 7 | H118: 737 MAX: 737 MAX 7 | I118: =MATCH("*"&E118&"*",Sheet1!C:C,0) ->  | J118: =MATCH("*"&G118&"*",Sheet1!C:C,0) ->  | K118: =MATCH("*"&H118&"*",Sheet1!B:B,0) -> 
B119: 196 | C119: Boeing | D119: 1 | E119: Boeing 737MAX | F119: Boeing 737 MAX: 737 MAX 8 | G119: 737 MAX: 737 MAX 8 | H119: 737 MAX: 737 MAX 8 | I119: =MATCH("*"&E119&"*",Sheet1!C:C,0) ->  | J119: =MATCH("*"&G119&"*",Sheet1!C:C,0) ->  | K119: =MATCH("*"&H119&"*",Sheet1!B:B,0) -> 
B120: 197 | C120: Boeing | D120: 1 | E120: Boeing 737MAX | F120: Boeing 737 MAX: 737 MAX 9 | G120: 737 MAX: 737 MAX 9 | H120: 737 MAX: 737 MAX 9 | I120: =MATCH("*"&E120&"*",Sheet1!C:C,0) ->  | J120: =MATCH("*"&G120&"*",Sheet1!C:C,0) ->  | K120: =MATCH("*"&H120&"*",Sheet1!B:B,0) -> 
B121: 300 | C121: Boeing | D121: 1 | E121: Boeing 737NG | F121: Boeing 737-600 | G121: 737-600 | H121: 737-600 | I121: =MATCH("*"&E121&"*",Sheet1!C:C,0) ->  | J121: =MATCH("*"&G121&"*",Sheet1!C:C,0) ->  | K121: =MATCH("*"&H121&"*",Sheet1!B:B,0) -> 
B122: 192 | C122: Boeing | D122: 1 | E122: Boeing 737NG | F122: Boeing 737-700 | G122: 737-700 | H122: 737-700 | I122: =MATCH("*"&E122&"*",Sheet1!C:C,0) ->  | J122: =MATCH("*"&G122&"*",Sheet1!C:C,0) ->  | K122: =MATCH("*"&H122&"*",Sheet1!B:B,0) -> 20 | L122: =INDEX(Sheet1!$A:$K,MATCH($H122,Sheet1!$B:$B,0),MATCH(L$1,Sheet1!$A$1:$K$1,0)) -> 89.1 | N122: =INDEX(Sheet1!$A:$K,MATCH($H122,Sheet1!$B:$B,0),MATCH(N$1,Sheet1!$A$1:$K$1,0)) -> http://www.axonaviation.com/commercial-aircraft/aircraft-data/aircraft-pricing
B123: 193 | C123: Boeing | D123: 1 | E123: Boeing 737NG | F123: Boeing 737-800 | G123: 737-800 | H123: 737-800 | I123: =MATCH("*"&E123&"*",Sheet1!C:C,0) ->  | J123: =MATCH("*"&G123&"*",Sheet1!C:C,0) ->  | K123: =MATCH("*"&H123&"*",Sheet1!B:B,0) -> 21 | L123: =INDEX(Sheet1!$A:$K,MATCH($H123,Sheet1!$B:$B,0),MATCH(L$1,Sheet1!$A$1:$K$1,0)) -> 106.1 | N123: =INDEX(Sheet1!$A:$K,MATCH($H123,Sheet1!$B:$B,0),MATCH(N$1,Sheet1!$A$1:$K$1,0)) -> http://www.axonaviation.com/commercial-aircraft/aircraft-data/aircraft-pricing
B124: 194 | C124: Boeing | D124: 1 | E124: Boeing 737NG | F124: Boeing 737-900 | G124: 737-900 | H124: 737-900 | I124: =MATCH("*"&E124&"*",Sheet1!C:C,0) ->  | J124: =MATCH("*"&G124&"*",Sheet1!C:C,0) ->  | K124: =MATCH("*"&H124&"*",Sheet1!B:B,0) -> 22
B125: 522 | C125: Boeing | D125: 1 | E125: Boeing 757 | F125: Boeing 757 | G125: 757 | H125: 757 | I125: =MATCH("*"&E125&"*",Sheet1!C:C,0) ->  | J125: =MATCH("*"&G125&"*",Sheet1!C:C,0) -> 26 | K125: =MATCH("*"&H125&"*",Sheet1!B:B,0) -> 26
B126: 612 | C126: Boeing | D126: 1 | E126: Boeing New Single Aisle (NSA) | F126: Boeing New Single Aisle (NSA) | G126: New Single Aisle (NSA) | H126: New Single Aisle (NSA) | I126: =MATCH("*"&E126&"*",Sheet1!C:C,0) ->  | J126: =MATCH("*"&G126&"*",Sheet1!C:C,0) ->  | K126: =MATCH("*"&H126&"*",Sheet1!B:B,0) -> 
B127: 12 | C127: Boeing | D127: 1 | E127: Boeing 767 | F127: Boeing 767 | G127: 767 | H127: 767 | I127: =MATCH("*"&E127&"*",Sheet1!C:C,0) ->  | J127: =MATCH("*"&G127&"*",Sheet1!C:C,0) -> 28 | K127: =MATCH("*"&H127&"*",Sheet1!B:B,0) -> 28
B128: 539 | C128: Boeing | D128: 1 | E128: Boeing 777 | F128: Boeing 777: 777-200ER | G128: 777: 777-200ER | H128: 777: 777-200ER | I128: =MATCH("*"&E128&"*",Sheet1!C:C,0) ->  | J128: =MATCH("*"&G128&"*",Sheet1!C:C,0) ->  | K128: =MATCH("*"&H128&"*",Sheet1!B:B,0) -> 
B129: 201 | C129: Boeing | D129: 1 | E129: Boeing 777 | F129: Boeing 777: 777-200LR | G129: 777: 777-200LR | H129: 777: 777-200LR | I129: =MATCH("*"&E129&"*",Sheet1!C:C,0) ->  | J129: =MATCH("*"&G129&"*",Sheet1!C:C,0) ->  | K129: =MATCH("*"&H129&"*",Sheet1!B:B,0) -> 
B130: 303 | C130: Boeing | D130: 1 | E130: Boeing 777 | F130: Boeing 777: 777-300 | G130: 777: 777-300 | H130: 777: 777-300 | I130: =MATCH("*"&E130&"*",Sheet1!C:C,0) ->  | J130: =MATCH("*"&G130&"*",Sheet1!C:C,0) ->  | K130: =MATCH("*"&H130&"*",Sheet1!B:B,0) -> 
B131: 202 | C131: Boeing | D131: 1 | E131: Boeing 777 | F131: Boeing 777: 777-300ER | G131: =TRIM(SUBSTITUTE(F131,C131,"")) -> 777: 777-300ER | H131: =TRIM(SUBSTITUTE(G131,"Family","")) -> 777: 777-300ER | I131: =MATCH("*"&E131&"*",Sheet1!C:C,0) ->  | J131: =MATCH("*"&G131&"*",Sheet1!C:C,0) ->  | K131: =MATCH("*"&H131&"*",Sheet1!B:B,0) -> 
B132: 203 | C132: Boeing | D132: 1 | E132: Boeing 777X | F132: Boeing 777X: 777-8 | G132: 777X: 777-8 | H132: 777X: 777-8 | I132: =MATCH("*"&E132&"*",Sheet1!C:C,0) ->  | J132: =MATCH("*"&G132&"*",Sheet1!C:C,0) ->  | K132: =MATCH("*"&H132&"*",Sheet1!B:B,0) -> 
B133: 204 | C133: Boeing | D133: 1 | E133: Boeing 777X | F133: Boeing 777X: 777-9 | G133: 777X: 777-9 | H133: 777X: 777-9 | I133: =MATCH("*"&E133&"*",Sheet1!C:C,0) ->  | J133: =MATCH("*"&G133&"*",Sheet1!C:C,0) ->  | K133: =MATCH("*"&H133&"*",Sheet1!B:B,0) -> 
B134: 200 | C134: Boeing | D134: 1 | E134: Boeing 787 | F134: Boeing 787 Dreamliner: 787-10 | G134: 787 Dreamliner: 787-10 | H134: 787 Dreamliner: 787-10 | I134: =MATCH("*"&E134&"*",Sheet1!C:C,0) ->  | J134: =MATCH("*"&G134&"*",Sheet1!C:C,0) ->  | K134: =MATCH("*"&H134&"*",Sheet1!B:B,0) -> 
B135: 198 | C135: Boeing | D135: 1 | E135: Boeing 787 | F135: Boeing 787 Dreamliner: 787-8 | G135: 787 Dreamliner: 787-8 | H135: 787 Dreamliner: 787-8 | I135: =MATCH("*"&E135&"*",Sheet1!C:C,0) ->  | J135: =MATCH("*"&G135&"*",Sheet1!C:C,0) ->  | K135: =MATCH("*"&H135&"*",Sheet1!B:B,0) -> 
B136: 199 | C136: Boeing | D136: 1 | E136: Boeing 787 | F136: Boeing 787 Dreamliner: 787-9 | G136: 787 Dreamliner: 787-9 | H136: 787 Dreamliner: 787-9 | I136: =MATCH("*"&E136&"*",Sheet1!C:C,0) ->  | J136: =MATCH("*"&G136&"*",Sheet1!C:C,0) ->  | K136: =MATCH("*"&H136&"*",Sheet1!B:B,0) -> 
B137: 530 | C137: Boeing | D137: 1 | E137: Boeing 747 | F137: Boeing 747-400 | G137: 747-400 | H137: 747-400 | I137: =MATCH("*"&E137&"*",Sheet1!C:C,0) ->  | J137: =MATCH("*"&G137&"*",Sheet1!C:C,0) ->  | K137: =MATCH("*"&H137&"*",Sheet1!B:B,0) -> 23
B138: 16 | C138: Boeing | D138: 1 | E138: Boeing 747 | F138: Boeing 747-8I | G138: 747-8I | H138: 747-8I | I138: =MATCH("*"&E138&"*",Sheet1!C:C,0) ->  | J138: =MATCH("*"&G138&"*",Sheet1!C:C,0) ->  | K138: =MATCH("*"&H138&"*",Sheet1!B:B,0) -> 25 | L138: =INDEX(Sheet1!$A:$K,MATCH($H138,Sheet1!$B:$B,0),MATCH(L$1,Sheet1!$A$1:$K$1,0)) -> 418.4 | N138: =INDEX(Sheet1!$A:$K,MATCH($H138,Sheet1!$B:$B,0),MATCH(N$1,Sheet1!$A$1:$K$1,0)) -> http://www.axonaviation.com/commercial-aircraft/aircraft-data/aircraft-pricing
B139: 636 | C139: Boeing | D139: 1 | E139: B-52 Stratofortress | F139: Boeing B-52 Stratofortress | G139: B-52 Stratofortress | H139: B-52 Stratofortress | I139: =MATCH("*"&E139&"*",Sheet1!C:C,0) ->  | J139: =MATCH("*"&G139&"*",Sheet1!C:C,0) ->  | K139: =MATCH("*"&H139&"*",Sheet1!B:B,0) -> 
B140: 676 | C140: Boeing | D140: 1 | E140: B-52 Stratofortress | F140: Boeing B-52 Stratofortress re-engine | G140: B-52 Stratofortress re-engine | H140: B-52 Stratofortress re-engine | I140: =MATCH("*"&E140&"*",Sheet1!C:C,0) ->  | J140: =MATCH("*"&G140&"*",Sheet1!C:C,0) ->  | K140: =MATCH("*"&H140&"*",Sheet1!B:B,0) -> 
B141: 157 | C141: Boeing | D141: 1 | E141: Boeing KC-46 Pegasus | F141: Boeing KC-46 Pegasus | G141: KC-46 Pegasus | H141: KC-46 Pegasus | I141: =MATCH("*"&E141&"*",Sheet1!C:C,0) ->  | J141: =MATCH("*"&G141&"*",Sheet1!C:C,0) ->  | K141: =MATCH("*"&H141&"*",Sheet1!B:B,0) ->  | L141: 220 | N141: https://simpleflying.com/how-much-do-military-transport-aircraft-cost/
B142: 156 | C142: Boeing | D142: 1 | E142: Boeing P-8 Poseidon | F142: Boeing P-8 Poseidon | G142: P-8 Poseidon | H142: P-8 Poseidon | I142: =MATCH("*"&E142&"*",Sheet1!C:C,0) ->  | J142: =MATCH("*"&G142&"*",Sheet1!C:C,0) ->  | K142: =MATCH("*"&H142&"*",Sheet1!B:B,0) -> 
B143: 158 | C143: Boeing | D143: 1 | E143: C-17 | F143: Boeing C-17 Globemaster III | G143: C-17 Globemaster III | H143: C-17 Globemaster III | I143: =MATCH("*"&E143&"*",Sheet1!C:C,0) ->  | J143: =MATCH("*"&G143&"*",Sheet1!C:C,0) ->  | K143: =MATCH("*"&H143&"*",Sheet1!B:B,0) -> 
B144: 574 | C144: Boeing | D144: 1 | E144: Boeing C-40 Clipper | F144: Boeing C-40 Clipper | G144: C-40 Clipper | H144: C-40 Clipper | I144: =MATCH("*"&E144&"*",Sheet1!C:C,0) ->  | J144: =MATCH("*"&G144&"*",Sheet1!C:C,0) ->  | K144: =MATCH("*"&H144&"*",Sheet1!B:B,0) -> 
B145: 620 | C145: Boeing | D145: 1 | E145: Boeing KC-135 Stratotanker | F145: Boeing KC-135 Stratotanker | G145: KC-135 Stratotanker | H145: KC-135 Stratotanker | I145: =MATCH("*"&E145&"*",Sheet1!C:C,0) ->  | J145: =MATCH("*"&G145&"*",Sheet1!C:C,0) ->  | K145: =MATCH("*"&H145&"*",Sheet1!B:B,0) -> 
B146: 582 | C146: Boeing/Leonardo | D146: 1 | E146: MH139 | F146: Boeing/Leonardo MH139 | G146: MH139 | H146: MH139 | I146: =MATCH("*"&E146&"*",Sheet1!C:C,0) ->  | J146: =MATCH("*"&G146&"*",Sheet1!C:C,0) ->  | K146: =MATCH("*"&H146&"*",Sheet1!B:B,0) -> 
B147: 35 | C147: Bombardier | D147: 1 | E147: Challenger 600 series | F147: Bombardier Challenger 600 series | G147: Challenger 600 series | H147: Challenger 600 series | I147: =MATCH("*"&E147&"*",Sheet1!C:C,0) ->  | J147: =MATCH("*"&G147&"*",Sheet1!C:C,0) ->  | K147: =MATCH("*"&H147&"*",Sheet1!B:B,0) -> 
B148: 635 | C148: Bombardier | D148: 1 | E148: Challenger 600 series | F148: Bombardier Challenger 6XX series | G148: Challenger 6XX series | H148: Challenger 6XX series | I148: =MATCH("*"&E148&"*",Sheet1!C:C,0) ->  | J148: =MATCH("*"&G148&"*",Sheet1!C:C,0) ->  | K148: =MATCH("*"&H148&"*",Sheet1!B:B,0) -> 
B149: 72 | C149: Bombardier | D149: 1 | E149: Challenger 850 | F149: Bombardier Challenger 850 | G149: Challenger 850 | H149: Challenger 850 | I149: =MATCH("*"&E149&"*",Sheet1!C:C,0) ->  | J149: =MATCH("*"&G149&"*",Sheet1!C:C,0) ->  | K149: =MATCH("*"&H149&"*",Sheet1!B:B,0) -> 
B150: 38 | C150: Bombardier | D150: 1 | E150: Global 7000 | F150: Bombardier Global 7500/8000 | G150: Global 7500/8000 | H150: Global 7500/8000 | I150: =MATCH("*"&E150&"*",Sheet1!C:C,0) ->  | J150: =MATCH("*"&G150&"*",Sheet1!C:C,0) ->  | K150: =MATCH("*"&H150&"*",Sheet1!B:B,0) ->  | L150: 80 | N150: https://infogram.com/bca-table-2023-jets-ultra-long-range-1ho16vorwrqkx4n
B151: 36 | C151: Bombardier | D151: 1 | E151: Global Express - 5000/6000 | F151: Bombardier Global 5000 | G151: Global 5000 | H151: Global 5000 | I151: =MATCH("*"&E151&"*",Sheet1!C:C,0) ->  | J151: =MATCH("*"&G151&"*",Sheet1!C:C,0) ->  | K151: =MATCH("*"&H151&"*",Sheet1!B:B,0) -> 
B152: 576 | C152: Bombardier | D152: 1 | E152: Global Express - 5000/6000 | F152: Bombardier Global 5500 | G152: Global 5500 | H152: Global 5500 | I152: =MATCH("*"&E152&"*",Sheet1!C:C,0) ->  | J152: =MATCH("*"&G152&"*",Sheet1!C:C,0) ->  | K152: =MATCH("*"&H152&"*",Sheet1!B:B,0) -> 
B153: 37 | C153: Bombardier | D153: 1 | E153: Global Express - 5000/6000 | F153: Bombardier Global 6000 | G153: Global 6000 | H153: Global 6000 | I153: =MATCH("*"&E153&"*",Sheet1!C:C,0) ->  | J153: =MATCH("*"&G153&"*",Sheet1!C:C,0) ->  | K153: =MATCH("*"&H153&"*",Sheet1!B:B,0) -> 
B154: 577 | C154: Bombardier | D154: 1 | E154: Global Express - 5000/6000 | F154: Bombardier Global 6500 | G154: Global 6500 | H154: Global 6500 | I154: =MATCH("*"&E154&"*",Sheet1!C:C,0) ->  | J154: =MATCH("*"&G154&"*",Sheet1!C:C,0) ->  | K154: =MATCH("*"&H154&"*",Sheet1!B:B,0) ->  | L154: 58 | N154: https://infogram.com/bca-table-2023-jets-ultra-long-range-1ho16vorwrqkx4n
B155: 34 | C155: Bombardier | D155: 1 | E155: Bombardier Challenger 300/350 | F155: Bombardier Challenger 300/350 | G155: Challenger 300/350 | H155: Challenger 300/350 | I155: =MATCH("*"&E155&"*",Sheet1!C:C,0) ->  | J155: =MATCH("*"&G155&"*",Sheet1!C:C,0) ->  | K155: =MATCH("*"&H155&"*",Sheet1!B:B,0) -> 
B156: 649 | C156: Bombardier | D156: 1 | E156: Bombardier Challenger 3500 | F156: Bombardier Challenger 3500 | G156: Challenger 3500 | H156: Challenger 3500 | I156: =MATCH("*"&E156&"*",Sheet1!C:C,0) ->  | J156: =MATCH("*"&G156&"*",Sheet1!C:C,0) ->  | K156: =MATCH("*"&H156&"*",Sheet1!B:B,0) -> 
B157: 618 | C157: Bombardier | D157: 1 | E157: Bombardier CRJ | F157: Bombardier CRJ200 | G157: CRJ200 | H157: CRJ200 | I157: =MATCH("*"&E157&"*",Sheet1!C:C,0) ->  | J157: =MATCH("*"&G157&"*",Sheet1!C:C,0) ->  | K157: =MATCH("*"&H157&"*",Sheet1!B:B,0) -> 38
B158: 220 | C158: Bombardier | D158: 1 | E158: Bombardier CRJ | F158: Bombardier CRJ700-1000 | G158: CRJ700-1000 | H158: CRJ700-1000 | I158: =MATCH("*"&E158&"*",Sheet1!C:C,0) ->  | J158: =MATCH("*"&G158&"*",Sheet1!C:C,0) ->  | K158: =MATCH("*"&H158&"*",Sheet1!B:B,0) -> 
B159: 218 | C159: Bombardier | D159: 1 | E159: Bombardier CRJ | F159: Bombardier CRJ700-700 | G159: CRJ700-700 | H159: CRJ700-700 | I159: =MATCH("*"&E159&"*",Sheet1!C:C,0) ->  | J159: =MATCH("*"&G159&"*",Sheet1!C:C,0) ->  | K159: =MATCH("*"&H159&"*",Sheet1!B:B,0) -> 
B160: 219 | C160: Bombardier | D160: 1 | E160: Bombardier CRJ | F160: Bombardier CRJ700-900 | G160: CRJ700-900 | H160: CRJ700-900 | I160: =MATCH("*"&E160&"*",Sheet1!C:C,0) ->  | J160: =MATCH("*"&G160&"*",Sheet1!C:C,0) ->  | K160: =MATCH("*"&H160&"*",Sheet1!B:B,0) -> 
B161: 226 | C161: Canadair | D161: 1 | E161: Canadair CL-415 | F161: Canadair CL-415 | G161: CL-415 | H161: CL-415 | I161: =MATCH("*"&E161&"*",Sheet1!C:C,0) ->  | J161: =MATCH("*"&G161&"*",Sheet1!C:C,0) ->  | K161: =MATCH("*"&H161&"*",Sheet1!B:B,0) -> 
B162: 152 | C162: CASA | D162: 1 | E162: CASA C-212 Aviocar | F162: CASA C-212 Aviocar | G162: C-212 Aviocar | H162: C-212 Aviocar | I162: =MATCH("*"&E162&"*",Sheet1!C:C,0) ->  | J162: =MATCH("*"&G162&"*",Sheet1!C:C,0) ->  | K162: =MATCH("*"&H162&"*",Sheet1!B:B,0) -> 
B163: 153 | C163: CASA/IPTN | D163: 1 | E163: CASA/IPTN CN-235 | F163: CASA/IPTN CN-235 | G163: CN-235 | H163: CN-235 | I163: =MATCH("*"&E163&"*",Sheet1!C:C,0) ->  | J163: =MATCH("*"&G163&"*",Sheet1!C:C,0) ->  | K163: =MATCH("*"&H163&"*",Sheet1!B:B,0) -> 
B164: 48 | C164: Cessna | D164: 1 | E164: Citation Hemisphere | F164: Cessna Citation Hemisphere | G164: Citation Hemisphere | H164: Citation Hemisphere | I164: =MATCH("*"&E164&"*",Sheet1!C:C,0) ->  | J164: =MATCH("*"&G164&"*",Sheet1!C:C,0) ->  | K164: =MATCH("*"&H164&"*",Sheet1!B:B,0) -> 
B165: 47 | C165: Cessna | D165: 1 | E165: Citation Longitude | F165: Cessna Citation Longitude | G165: Citation Longitude | H165: Citation Longitude | I165: =MATCH("*"&E165&"*",Sheet1!C:C,0) ->  | J165: =MATCH("*"&G165&"*",Sheet1!C:C,0) ->  | K165: =MATCH("*"&H165&"*",Sheet1!B:B,0) ->  | L165: 29.9 | N165: https://aviationweek.com/business-aviation/aircraft-propulsion/20twenty-longitude-cessnas-super-mid-flagship
B166: 42 | C166: Cessna | D166: 1 | E166: Citation CJ3 | F166: Cessna Citation CJ3 | G166: Citation CJ3 | H166: Citation CJ3 | I166: =MATCH("*"&E166&"*",Sheet1!C:C,0) ->  | J166: =MATCH("*"&G166&"*",Sheet1!C:C,0) ->  | K166: =MATCH("*"&H166&"*",Sheet1!B:B,0) -> 
B167: 43 | C167: Cessna | D167: 1 | E167: Citation CJ4 | F167: Cessna Citation CJ4 | G167: Citation CJ4 | H167: Citation CJ4 | I167: =MATCH("*"&E167&"*",Sheet1!C:C,0) ->  | J167: =MATCH("*"&G167&"*",Sheet1!C:C,0) ->  | K167: =MATCH("*"&H167&"*",Sheet1!B:B,0) -> 
B168: 39 | C168: Cessna | D168: 1 | E168: Citation V | F168: Cessna Citation Encore | G168: Citation Encore | H168: Citation Encore | I168: =MATCH("*"&E168&"*",Sheet1!C:C,0) ->  | J168: =MATCH("*"&G168&"*",Sheet1!C:C,0) ->  | K168: =MATCH("*"&H168&"*",Sheet1!B:B,0) -> 
B169: 46 | C169: Cessna | D169: 1 | E169: Citation Latitude | F169: Cessna Citation Latitude | G169: Citation Latitude | H169: Citation Latitude | I169: =MATCH("*"&E169&"*",Sheet1!C:C,0) ->  | J169: =MATCH("*"&G169&"*",Sheet1!C:C,0) ->  | K169: =MATCH("*"&H169&"*",Sheet1!B:B,0) -> 
B170: 45 | C170: Cessna | D170: 1 | E170: Citation Sovereign | F170: Cessna Citation Sovereign | G170: Citation Sovereign | H170: Citation Sovereign | I170: =MATCH("*"&E170&"*",Sheet1!C:C,0) ->  | J170: =MATCH("*"&G170&"*",Sheet1!C:C,0) ->  | K170: =MATCH("*"&H170&"*",Sheet1!B:B,0) -> 
B171: 49 | C171: Cessna | D171: 1 | E171: Citation X | F171: Cessna Citation X | G171: Citation X | H171: Citation X | I171: =MATCH("*"&E171&"*",Sheet1!C:C,0) ->  | J171: =MATCH("*"&G171&"*",Sheet1!C:C,0) ->  | K171: =MATCH("*"&H171&"*",Sheet1!B:B,0) -> 
B172: 40 | C172: Cessna | D172: 1 | E172: Citation XLS | F172: Cessna Citation XLS | G172: Citation XLS | H172: Citation XLS | I172: =MATCH("*"&E172&"*",Sheet1!C:C,0) ->  | J172: =MATCH("*"&G172&"*",Sheet1!C:C,0) ->  | K172: =MATCH("*"&H172&"*",Sheet1!B:B,0) -> 
B173: 41 | C173: Cessna | D173: 1 | E173: Citation M2 | F173: Cessna Citation M2 | G173: Citation M2 | H173: Citation M2 | I173: =MATCH("*"&E173&"*",Sheet1!C:C,0) ->  | J173: =MATCH("*"&G173&"*",Sheet1!C:C,0) ->  | K173: =MATCH("*"&H173&"*",Sheet1!B:B,0) -> 
B174: 44 | C174: Cessna | D174: 1 | E174: Citation Mustang | F174: Cessna Citation Mustang | G174: Citation Mustang | H174: Citation Mustang | I174: =MATCH("*"&E174&"*",Sheet1!C:C,0) ->  | J174: =MATCH("*"&G174&"*",Sheet1!C:C,0) ->  | K174: =MATCH("*"&H174&"*",Sheet1!B:B,0) -> 
B175: 82 | C175: Cessna | D175: 1 | E175: Cessna 208 Caravan | F175: Cessna 208 Caravan | G175: 208 Caravan | H175: 208 Caravan | I175: =MATCH("*"&E175&"*",Sheet1!C:C,0) ->  | J175: =MATCH("*"&G175&"*",Sheet1!C:C,0) ->  | K175: =MATCH("*"&H175&"*",Sheet1!B:B,0) -> 
B176: 308 | C176: Cessna | D176: 1 | E176: Cessna 408 SkyCourier | F176: Cessna 408 SkyCourier | G176: 408 SkyCourier | H176: 408 SkyCourier | I176: =MATCH("*"&E176&"*",Sheet1!C:C,0) ->  | J176: =MATCH("*"&G176&"*",Sheet1!C:C,0) ->  | K176: =MATCH("*"&H176&"*",Sheet1!B:B,0) -> 
B177: 81 | C177: Cessna | D177: 1 | E177: Cessna Denali | F177: Cessna Denali | G177: Denali | H177: Denali | I177: =MATCH("*"&E177&"*",Sheet1!C:C,0) ->  | J177: =MATCH("*"&G177&"*",Sheet1!C:C,0) ->  | K177: =MATCH("*"&H177&"*",Sheet1!B:B,0) -> 
B178: 550 | C178: Cirrus | D178: 1 | E178: Cirrus Vision Jet SF50 | F178: Cirrus Vision Jet SF50 | G178: Vision Jet SF50 | H178: Vision Jet SF50 | I178: =MATCH("*"&E178&"*",Sheet1!C:C,0) ->  | J178: =MATCH("*"&G178&"*",Sheet1!C:C,0) ->  | K178: =MATCH("*"&H178&"*",Sheet1!B:B,0) -> 
B179: 18 | C179: Comac | D179: 1 | E179: Comac C919 | F179: Comac C919 | G179: C919 | H179: C919 | I179: =MATCH("*"&E179&"*",Sheet1!C:C,0) ->  | J179: =MATCH("*"&G179&"*",Sheet1!C:C,0) ->  | K179: =MATCH("*"&H179&"*",Sheet1!B:B,0) -> 
B180: 27 | C180: Comac | D180: 1 | E180: Comac ARJ21 | F180: Comac ARJ21 | G180: ARJ21 | H180: ARJ21 | I180: =MATCH("*"&E180&"*",Sheet1!C:C,0) ->  | J180: =MATCH("*"&G180&"*",Sheet1!C:C,0) ->  | K180: =MATCH("*"&H180&"*",Sheet1!B:B,0) -> 
B181: 587 | C181: Dassault | D181: 1 | E181: Falcon 10X | F181: Dassault Falcon 10X | G181: Falcon 10X | H181: Falcon 10X | I181: =MATCH("*"&E181&"*",Sheet1!C:C,0) ->  | J181: =MATCH("*"&G181&"*",Sheet1!C:C,0) ->  | K181: =MATCH("*"&H181&"*",Sheet1!B:B,0) -> 
B182: 51 | C182: Dassault | D182: 1 | E182: Falcon 6X | F182: Dassault Falcon 6X | G182: Falcon 6X | H182: Falcon 6X | I182: =MATCH("*"&E182&"*",Sheet1!C:C,0) ->  | J182: =MATCH("*"&G182&"*",Sheet1!C:C,0) ->  | K182: =MATCH("*"&H182&"*",Sheet1!B:B,0) -> 
B183: 54 | C183: Dassault | D183: 1 | E183: Falcon 7X/8X | F183: Dassault Falcon 7X/8X | G183: Falcon 7X/8X | H183: Falcon 7X/8X | I183: =MATCH("*"&E183&"*",Sheet1!C:C,0) ->  | J183: =MATCH("*"&G183&"*",Sheet1!C:C,0) ->  | K183: =MATCH("*"&H183&"*",Sheet1!B:B,0) ->  | L183: 63.8 | N183: https://infogram.com/bca-table-2023-jets-ultra-long-range-1ho16vorwrqkx4n
B184: 50 | C184: Dassault | D184: 1 | E184: Falcon 900 | F184: Dassault Falcon 900 | G184: Falcon 900 | H184: Falcon 900 | I184: =MATCH("*"&E184&"*",Sheet1!C:C,0) ->  | J184: =MATCH("*"&G184&"*",Sheet1!C:C,0) ->  | K184: =MATCH("*"&H184&"*",Sheet1!B:B,0) -> 
B185: 53 | C185: Dassault | D185: 1 | E185: Falcon 2000 | F185: Dassault Falcon 2000 | G185: Falcon 2000 | H185: Falcon 2000 | I185: =MATCH("*"&E185&"*",Sheet1!C:C,0) ->  | J185: =MATCH("*"&G185&"*",Sheet1!C:C,0) ->  | K185: =MATCH("*"&H185&"*",Sheet1!B:B,0) -> 
B186: 640 | C186: Dassault | D186: 1 | E186: Falcon 2X | F186: Dassault Falcon 2X | G186: Falcon 2X | H186: Falcon 2X | I186: =MATCH("*"&E186&"*",Sheet1!C:C,0) ->  | J186: =MATCH("*"&G186&"*",Sheet1!C:C,0) ->  | K186: =MATCH("*"&H186&"*",Sheet1!B:B,0) -> 
B187: 141 | C187: Dassault | D187: 1 | E187: Dassault Rafale | F187: Dassault Rafale | G187: Rafale | H187: Rafale | I187: =MATCH("*"&E187&"*",Sheet1!C:C,0) ->  | J187: =MATCH("*"&G187&"*",Sheet1!C:C,0) ->  | K187: =MATCH("*"&H187&"*",Sheet1!B:B,0) -> 
B188: 621 | C188: De Havilland Canada | D188: 1 | E188: De Havilland Canada DHC-8 | F188: De Havilland Canada DHC-8-100 | G188: DHC-8-100 | H188: DHC-8-100 | I188: =MATCH("*"&E188&"*",Sheet1!C:C,0) ->  | J188: =MATCH("*"&G188&"*",Sheet1!C:C,0) ->  | K188: =MATCH("*"&H188&"*",Sheet1!B:B,0) -> 
B189: 622 | C189: De Havilland Canada | D189: 1 | E189: De Havilland Canada DHC-8 | F189: De Havilland Canada DHC-8-200 | G189: DHC-8-200 | H189: DHC-8-200 | I189: =MATCH("*"&E189&"*",Sheet1!C:C,0) ->  | J189: =MATCH("*"&G189&"*",Sheet1!C:C,0) ->  | K189: =MATCH("*"&H189&"*",Sheet1!B:B,0) -> 
B190: 623 | C190: De Havilland Canada | D190: 1 | E190: De Havilland Canada DHC-8 | F190: De Havilland Canada DHC-8-300 | G190: DHC-8-300 | H190: DHC-8-300 | I190: =MATCH("*"&E190&"*",Sheet1!C:C,0) ->  | J190: =MATCH("*"&G190&"*",Sheet1!C:C,0) ->  | K190: =MATCH("*"&H190&"*",Sheet1!B:B,0) -> 
B191: 21 | C191: De Havilland Canada | D191: 1 | E191: De Havilland Canada DHC-8 | F191: De Havilland Canada DHC-8-400 | G191: DHC-8-400 | H191: DHC-8-400 | I191: =MATCH("*"&E191&"*",Sheet1!C:C,0) ->  | J191: =MATCH("*"&G191&"*",Sheet1!C:C,0) ->  | K191: =MATCH("*"&H191&"*",Sheet1!B:B,0) -> 
B192: 624 | C192: Dornier | D192: 1 | E192: Dornier Do 328-100 | F192: Dornier Do 328-100 | G192: Do 328-100 | H192: Do 328-100 | I192: =MATCH("*"&E192&"*",Sheet1!C:C,0) ->  | J192: =MATCH("*"&G192&"*",Sheet1!C:C,0) ->  | K192: =MATCH("*"&H192&"*",Sheet1!B:B,0) -> 
B193: 224 | C193: Dornier | D193: 1 | E193: Dornier Do 228 | F193: Dornier Do 228 | G193: Do 228 | H193: Do 228 | I193: =MATCH("*"&E193&"*",Sheet1!C:C,0) ->  | J193: =MATCH("*"&G193&"*",Sheet1!C:C,0) ->  | K193: =MATCH("*"&H193&"*",Sheet1!B:B,0) -> 
B194: 154 | C194: EADS | D194: 1 | E194: EADS CASA C-295 | F194: EADS CASA C-295 | G194: CASA C-295 | H194: CASA C-295 | I194: =MATCH("*"&E194&"*",Sheet1!C:C,0) ->  | J194: =MATCH("*"&G194&"*",Sheet1!C:C,0) ->  | K194: =MATCH("*"&H194&"*",Sheet1!B:B,0) -> 
B195: 70 | C195: Eclipse | D195: 1 | E195: Eclipse 550 | F195: Eclipse 550 | G195: =TRIM(SUBSTITUTE(F195,C195,"")) -> 550 | H195: =TRIM(SUBSTITUTE(G195,"Family","")) -> 550 | I195: =MATCH("*"&E195&"*",Sheet1!C:C,0) ->  | J195: =MATCH("*"&G195&"*",Sheet1!C:C,0) ->  | K195: =MATCH("*"&H195&"*",Sheet1!B:B,0) -> 
B196: 74 | C196: Embraer | D196: 1 | E196: Legacy 600/650 | F196: Embraer Legacy 600/650 | G196: Legacy 600/650 | H196: Legacy 600/650 | I196: =MATCH("*"&E196&"*",Sheet1!C:C,0) ->  | J196: =MATCH("*"&G196&"*",Sheet1!C:C,0) ->  | K196: =MATCH("*"&H196&"*",Sheet1!B:B,0) -> 
B197: 652 | C197: Embraer | D197: 1 | E197: Legacy 700 | F197: Embraer legacy 700 | G197: legacy 700 | H197: legacy 700 | I197: =MATCH("*"&E197&"*",Sheet1!C:C,0) ->  | J197: =MATCH("*"&G197&"*",Sheet1!C:C,0) ->  | K197: =MATCH("*"&H197&"*",Sheet1!B:B,0) -> 
B198: 73 | C198: Embraer | D198: 1 | E198: Lineage 1000 | F198: Embraer Lineage 1000 | G198: Lineage 1000 | H198: Lineage 1000 | I198: =MATCH("*"&E198&"*",Sheet1!C:C,0) ->  | J198: =MATCH("*"&G198&"*",Sheet1!C:C,0) ->  | K198: =MATCH("*"&H198&"*",Sheet1!B:B,0) ->  | L198: 53 | N198: https://www.jetfinder.com/most-expensive-private-jets/
B199: 56 | C199: Embraer | D199: 1 | E199: Phenom 300 | F199: Embraer Phenom 300 | G199: Phenom 300 | H199: Phenom 300 | I199: =MATCH("*"&E199&"*",Sheet1!C:C,0) ->  | J199: =MATCH("*"&G199&"*",Sheet1!C:C,0) ->  | K199: =MATCH("*"&H199&"*",Sheet1!B:B,0) -> 
B200: 641 | C200: Embraer | D200: 1 | E200: Phenom 300X | F200: Embraer Phenom 300X | G200: Phenom 300X | H200: Phenom 300X | I200: =MATCH("*"&E200&"*",Sheet1!C:C,0) ->  | J200: =MATCH("*"&G200&"*",Sheet1!C:C,0) ->  | K200: =MATCH("*"&H200&"*",Sheet1!B:B,0) -> 
... 127 more rows

Sheet airbus 2018
A1: AIRBUS AIRCRAFT
A2: 2018 AVERAGE LIST PRICES* (USD millions)
A3: A318 | B3: 77.4
A4: A319 | B4: 92.3
A5: A320 | B5: 101
A6: A321 | B6: 118.3
A7: A319neo | B7: 101.5
A8: A320neo | B8: 110.6
A9: A321neo | B9: 129.5
A10: A330-200 | B10: 238.5
A11: A330-800 (neo) | B11: 259.9
A12: A330-200 Freighter | B12: 241.7
A13: A330-300 | B13: 264.2
A14: A330-900 (neo) | B14: 296.4
A15: A350-800 | B15: 280.6
A16: A350-900 | B16: 317.4
A17: A350-1000 | B17: 366.5
A18: A380 | B18: 445.6
A20: https://www.airbus.com/sites/g/files/jlcbta136/files/2021-07/new-airbus-list-prices-2018.pdf

Sheet statista 2021
A1: New production values for Airbus aircraft in 2021, by type
A2: A380 | B2: 169.5
A3: A350-1000 | B3: 159.1
A4: A350-900 | B4: 145.8
A5: A330neo-900 | B5: 104
A6: A330-800 | B6: 92.2
A7: A330-200 Freighter | B7: 84
A8: A330-300 | B8: 80.6
A9: A330-200 Freighter | B9: 72.4
A10: A321neo | B10: 54.5
A11: A320neo | B11: 49.2
A12: A321ceo | B12: 48.5
A13: A320ceo | B13: 41.5
A14: A220-300 | B14: 36.8
A15: A319neo | B15: 36.7
A16: A220-100 | B16: 32.6
A18: https://www.statista.com/statistics/273962/prices-of-airbus-aircraft-by-type/

Sheet Aircraft Pricing
A1: Aircraft model | B1: Engine | C1: Range | D1: Typical Configuration | E1: New Price
A2: BOEING 737 MAX 7 | D2: 172 | E2: $99.7M | F2: =A2&"^"&B2&"^"&C2&"^"&D2&"^"&E2 -> BOEING 737 MAX 7^^^172^$99.7M
A3: Airbus A318 | B3: GE, Pratt & Whitney | C3: 3,100 NM | D3: 107 | E3: $75.1M | F3: =A3&"^"&B3&"^"&C3&"^"&D3&"^"&E3 -> Airbus A318^GE, Pratt & Whitney^3,100 NM^107^$75.1M
A4: Airbus A319 | B4: GE, International Aero Engines | C4: 3,700 nm | D4: 124 | E4: $89.6M | F4: Airbus A319^GE, International Aero Engines^3,700 nm^124^$89.6M
A5: Airbus A320 | B5: GE, International Aero Engines | C5: 3,300 NM | D5: 150 | E5: $98M | F5: Airbus A320^GE, International Aero Engines^3,300 NM^150^$98M
A6: Airbus A321 | B6: GE, International Aero Engines | C6: 3,200 NM | D6: 185 | E6: $114.9M | F6: Airbus A321^GE, International Aero Engines^3,200 NM^185^$114.9M
A7: Airbus A330-200 | B7: ROLLS-ROYCE, GE, Pratt & Whitney | C7: 7,250 NM | D7: 247 | E7: $231.5M | F7: Airbus A330-200^ROLLS-ROYCE, GE, Pratt & Whitney^7,250 NM^247^$231.5M
A8: Airbus A330-200F | B8: Pratt & Whitney, ROLLS-ROYCE | C8: 4,000 NM | D8: N/A | E8: $234.7M | F8: Airbus A330-200F^Pratt & Whitney, ROLLS-ROYCE^4,000 NM^N/A^$234.7M
A9: Airbus A330-300 | B9: ROLLS-ROYCE, GE, Pratt & Whitney | C9: 6,350 NM | D9: 277 | E9: $256.4M | F9: Airbus A330-300^ROLLS-ROYCE, GE, Pratt & Whitney^6,350 NM^277^$256.4M
A10: Airbus A340-300 | B10: CFM International | C10: 7,300 NM | D10: 277 | E10: $219M | F10: Airbus A340-300^CFM International^7,300 NM^277^$219M
A11: Airbus A350-900 | B11: ROLLS-ROYCE | C11: 8,100 NM | D11: 325 | E11: $308.1M | F11: Airbus A350-900^ROLLS-ROYCE^8,100 NM^325^$308.1M
A12: Airbus A350-1000 | B12: ROLLS-ROYCE | C12: 7,950 NM | D12: 366 | E12: $355.7M | F12: Airbus A350-1000^ROLLS-ROYCE^7,950 NM^366^$355.7M
A13: Airbus A380 | B13: ROLLS-ROYCE, Engine Alliance | C13: 8,200 NM | D13: 544 | E13: $350M | F13: Airbus A380^ROLLS-ROYCE, Engine Alliance^8,200 NM^544^$350M
A14: Boeing 737-700 | B14: Pratt & Whitney, GE | C14: 3,440 NM | D14: 126 | E14: $89.1M | F14: Boeing 737-700^Pratt & Whitney, GE^3,440 NM^126^$89.1M
A15: Boeing 737-800 | B15: Pratt & Whitney, GE, ROLLS-ROYCE | C15: 3,115 NM | D15: 162 | E15: $106.1M | F15: Boeing 737-800^Pratt & Whitney, GE, ROLLS-ROYCE^3,115 NM^162^$106.1M
A16: Boeing 737-900ER | B16: Pratt & Whitney, GE | C16: 3,265 NM | D16: 178 | E16: $112.6M | F16: Boeing 737-900ER^Pratt & Whitney, GE^3,265 NM^178^$112.6M
A17: Boeing 747-400 | B17: Pratt & Whitney, GE, ROLLS-ROYCE | C17: 7,260 NM | D17: 410 | F17: Boeing 747-400^Pratt & Whitney, GE, ROLLS-ROYCE^7,260 NM^410^
A18: Boeing 747-400F | B18: Pratt & Whitney, GE, ROLLS-ROYCE | C18: 4,445 NM | D18: N/A | F18: Boeing 747-400F^Pratt & Whitney, GE, ROLLS-ROYCE^4,445 NM^N/A^
A19: Boeing 747-8i | B19: GE | C19: 7,730 NM | D19: 410 | E19: $418.4M | F19: Boeing 747-8i^GE^7,730 NM^410^$418.4M
A20: Boeing 757-200 | B20: ROLLS-ROYCE, Pratt & Whitney | C20: 4,100 NM | D20: 200 | E20: TBC | F20: Boeing 757-200^ROLLS-ROYCE, Pratt & Whitney^4,100 NM^200^TBC
A21: Boeing 757-300 | B21: ROLLS-ROYCE, Pratt & Whitney | C21: 3,595 NM | D21: 243 | E21: TBC | F21: Boeing 757-300^ROLLS-ROYCE, Pratt & Whitney^3,595 NM^243^TBC
A22: Boeing 767-300ER | B22: Pratt & Whitney, GE, ROLLS-ROYCE | C22: 6,310 NM | D22: 269 | E22: $217.9M | F22: Boeing 767-300ER^Pratt & Whitney, GE, ROLLS-ROYCE^6,310 NM^269^$217.9M
A23: Boeing 767-400ER | B23: Pratt & Whitney, GE | C23: 5,625 NM | D23: 304 | E23: TBC | F23: Boeing 767-400ER^Pratt & Whitney, GE^5,625 NM^304^TBC
A24: Boeing 777-200ER | B24: Pratt & Whitney, GE, ROLLS-ROYCE | C24: 7,065 NM | D24: 313 | E24: $306.6M | F24: Boeing 777-200ER^Pratt & Whitney, GE, ROLLS-ROYCE^7,065 NM^313^$306.6M
A25: Boeing 777-200LR | B25: GE | C25: 8,555 NM | D25: 317 | E25: $346.9M | F25: Boeing 777-200LR^GE^8,555 NM^317^$346.9M
A26: Boeing 777-300ER | B26: GE | C26: 7,370 NM | D26: 396 | E26: $375.5M | F26: Boeing 777-300ER^GE^7,370 NM^396^$375.5M
A27: Boeing 777F | B27: GE | C27: 4,970 NM | D27: N/A | E27: $352.3M | F27: Boeing 777F^GE^4,970 NM^N/A^$352.3M
A28: Boeing 787-8 | B28: GE, ROLLS-ROYCE | C28: 7,355 NM | D28: 242 | E28: $248.3M | F28: Boeing 787-8^GE, ROLLS-ROYCE^7,355 NM^242^$248.3M
A29: Boeing 787-9 | B29: GE, ROLLS-ROYCE | C29: 7,635 NM | D29: 290 | E29: $292.5M | F29: Boeing 787-9^GE, ROLLS-ROYCE^7,635 NM^290^$292.5M
A30: Boeing 787-10 | B30: GE , ROLLS-ROYCE | C30: 6,430 NM | D30: 330 | E30: 338.4 | F30: Boeing 787-10^GE , ROLLS-ROYCE^6,430 NM^330^338.4
A31: Bombardier CRJ100ER/LR | B31: GE | C31: 1,620 NM / 2,003 NM | D31: 50 | E31: TBC | F31: Bombardier CRJ100ER/LR^GE^1,620 NM / 2,003 NM^50^TBC
A32: Bombardier CRJ200ER/LR | B32: GE | C32: 1,644 NM / 2,004 NM | D32: 50 | E32: TBC | F32: Bombardier CRJ200ER/LR^GE^1,644 NM / 2,004 NM^50^TBC
A33: Bombardier CRJ700ER | B33: GE | C33: 1,378 NM | D33: 66 | E33: TBC | F33: Bombardier CRJ700ER^GE^1,378 NM^66^TBC
A34: Bombardier CRJ900ER/LR | B34: GE | C34: 1,317 NM / 1,553 NM | D34: 79 | E34: TBC | F34: Bombardier CRJ900ER/LR^GE^1,317 NM / 1,553 NM^79^TBC
A35: Bombardier CRJ1000ER | B35: GE | C35: 1,622 NM | D35: 50 | E35: TBC | F35: Bombardier CRJ1000ER^GE^1,622 NM^50^TBC
A36: Embraer 170LR | B36: GE | C36: 2,100 NM | D36: 70 | E36: $26.5M | F36: Embraer 170LR^GE^2,100 NM^70^$26.5M
A37: Embraer 175 | B37: GE | C37: 2,150 NM | D37: 78 | E37: $28M | F37: Embraer 175^GE^2,150 NM^78^$28M
A38: Embraer 190 | B38: GE | C38: 2,400 NM | D38: 94 | E38: $32M | F38: Embraer 190^GE^2,400 NM^94^$32M
A39: Embraer 195 | B39: GE | C39: 2,000 NM | D39: 106 | E39: $40M | F39: Embraer 195^GE^2,000 NM^106^$40M
A41: http://www.axonaviation.com/commercial-aircraft/aircraft-data/aircraft-pricing
